BodyName,ServiceLabel,ServiceCode,ServiceDivisionLabel,ServiceDivisionCode,OrganisationalUnit,ExpenditureCategory,CIPFADetailed ExpenditureType,Date,NetAmount,CapitalAndRevenue,SupplierName
Leeds City Council,City Development,101,Recreation,10,Sport And Active Recreation,Supplies and Services,Other Equipment,11/04/2012,75,Revenue,AboutMyArea
Leeds City Council,City Development,101,"Libraries, Arts & Heritage",9,Heritage Services,Supplies and Services,Publicity & Promotional Services,11/12/2012,6,Revenue,&Co The Cultural Marketing House
Leeds City Council,City Development,101,"Libraries, Arts & Heritage",9,Heritage Services,Supplies and Services,Publicity & Promotional Services,12/12/2012,-6,Revenue,&Co The Cultural Marketing House
Leeds City Council,City Development,101,"Libraries, Arts & Heritage",9,Heritage Services,Supplies and Services,Publicity & Promotional Services,16/07/2012,0,Revenue,&Co The Cultural Marketing House
Leeds City Council,City Development,101,"Libraries, Arts & Heritage",9,Heritage Services,Supplies and Services,Publicity & Promotional Services,11/12/2012,17,Revenue,&Co The Cultural Marketing House
Leeds City Council,City Development,101,"Libraries, Arts & Heritage",9,Heritage Services,Supplies and Services,Publicity & Promotional Services,12/12/2012,-17,Revenue,&Co The Cultural Marketing House
Leeds City Council,Strategic Accounts,9,Miscellaneous,1,Miscellaneous,Supplies and Services,Grants To Outside Bodies,11/09/2012,150,Revenue,11th S W Leeds (Rodley) Scout Group
Leeds City Council,Strategic Accounts,9,Miscellaneous,1,Miscellaneous,Supplies and Services,Grants To Outside Bodies,05/03/2013,200,Revenue,11th S W Leeds (Rodley) Scout Group
Leeds City Council,Strategic Accounts,9,Miscellaneous,1,Miscellaneous,Supplies and Services,Grants To Outside Bodies,13/08/2012,170,Revenue,16th Leeds Girls Brigade
Leeds City Council,Strategic Accounts,9,Miscellaneous,1,Miscellaneous,Supplies and Services,Grants To Outside Bodies,12/03/2013,50,Revenue,1st Beeston Brownies
Leeds City Council,Strategic Accounts,9,Miscellaneous,1,Miscellaneous,Supplies and Services,Grants To Outside Bodies,09/10/2012,150,Revenue,1st Calverley Brownies
Leeds City Council,Central & Corporate,105,Central & Corporate,0,Central & Corporate,Bequests & Trusts,CALVERLEY CHARITY,22/10/2012,200,Revenue,1st Calverley Brownies
Leeds City Council,Strategic Accounts,9,Miscellaneous,1,Miscellaneous,Supplies and Services,Grants To Outside Bodies,29/01/2013,500,Revenue,1st Cross Gates Guides
Leeds City Council,Strategic Accounts,9,Miscellaneous,1,Miscellaneous,Supplies and Services,Grants To Outside Bodies,16/04/2013,500,Revenue,1st Cross Gates Guides
Leeds City Council,Strategic Accounts,9,Miscellaneous,1,Miscellaneous,Supplies and Services,Grants To Outside Bodies,22/05/2012,50,Revenue,1st Garforth Scout Group
Leeds City Council,Central & Corporate,105,Support And Facilities General Fund,10,Civic And Community Buildings,Premises Related,Rents,15/05/2012,500,Revenue,1st Guiseley Guide Hq And Community Hall
Leeds City Council,Central & Corporate,105,Support And Facilities General Fund,10,Civic And Community Buildings,Premises Related,Rents,15/11/2012,500,Revenue,1st Guiseley Guide Hq And Community Hall
Leeds City Council,Environment & Neighbourhoods,102,Parks & Countryside,16,Parks & Countryside,Supplies and Services,Non-Recurring Grants,09/05/2012,200,Revenue,1st Pudsey Scout Group
Leeds City Council,Central & Corporate,105,Executive Support,17,Area Management,Supplies and Services,Well Being Small Grants Projects,12/06/2012,500,Revenue,1st Pudsey Scout Group
Leeds City Council,Schools,10,Individual School Budget,100,Primary Schools,Supplies and Services,Educational Visits,08/10/2012,400,Revenue,2 Boards & A Passion C.I.C.
Leeds City Council,Strategic Accounts,9,Miscellaneous,1,Miscellaneous,Supplies and Services,Grants To Outside Bodies,19/02/2013,60,Revenue,21st Leeds Guides
Leeds City Council,Strategic Accounts,9,Miscellaneous,1,Miscellaneous,Supplies and Services,Grants To Outside Bodies,26/02/2013,265,Revenue,21st Leeds Guides
Leeds City Council,Strategic Accounts,9,Miscellaneous,1,Miscellaneous,Supplies and Services,Grants To Outside Bodies,27/11/2012,200,Revenue,26th North Leeds Scout Group
Leeds City Council,Strategic Accounts,9,Miscellaneous,1,Miscellaneous,Supplies and Services,Grants To Outside Bodies,27/11/2012,100,Revenue,2nd Morley Rainbows
Leeds City Council,Strategic Accounts,9,Miscellaneous,1,Miscellaneous,Supplies and Services,Grants To Outside Bodies,20/08/2012,75,Revenue,2nd Morley Rainbows
Leeds City Council,Strategic Accounts,9,Miscellaneous,1,Miscellaneous,Supplies and Services,Grants To Outside Bodies,20/08/2012,75,Revenue,2nd Morley Rainbows
Leeds City Council,Strategic Accounts,9,Miscellaneous,1,Miscellaneous,Supplies and Services,Grants To Outside Bodies,26/03/2013,200,Revenue,3rd Crossgates Rainbows
Leeds City Council,Strategic Accounts,9,Miscellaneous,1,Miscellaneous,Supplies and Services,Grants To Outside Bodies,19/03/2013,100,Revenue,3rd Meanwood Guides
Leeds City Council,Extended Schools Facilities,12,Extended Schools Facilities,0,Extended Schools Facilities,Supplies and Services,Capitation,25/02/2013,48,Revenue,4children
Leeds City Council,Childrens Services,103,Safeguarding Targeted & Specialist,103,Targeted Services,Third Party Payments,Services Rendered By Voluntary Sector,28/05/2012,7920.75,Revenue,4children
Leeds City Council,Childrens Services,103,Learning Skills & Universal,102,Early Help,Third Party Payments,Services Rendered By Voluntary Sector,10/05/2012,16889.75,Revenue,4children
Leeds City Council,Childrens Services,103,Learning Skills & Universal,102,Early Help,Third Party Payments,Services Rendered By Voluntary Sector,10/05/2012,44904.75,Revenue,4children
Leeds City Council,Childrens Services,103,Learning Skills & Universal,102,Early Help,Third Party Payments,Services Rendered By Voluntary Sector,31/07/2012,44904.75,Revenue,4children
Leeds City Council,Childrens Services,103,Learning Skills & Universal,102,Early Help,Third Party Payments,Services Rendered By Voluntary Sector,31/07/2012,16889.75,Revenue,4children
Leeds City Council,Childrens Services,103,Safeguarding Targeted & Specialist,103,Targeted Services,Third Party Payments,Services Rendered By Voluntary Sector,09/07/2012,7920.75,Revenue,4children
Leeds City Council,Childrens Services,103,Strategy Policy Planning & Participation,104,Commissioning & Market Management,Third Party Payments,Services Rendered By Voluntary Sector,28/09/2012,7920.75,Revenue,4children
Leeds City Council,Childrens Services,103,Learning Skills & Universal,102,Early Help,Third Party Payments,Services Rendered By Voluntary Sector,28/09/2012,16889.75,Revenue,4children
Leeds City Council,Childrens Services,103,Learning Skills & Universal,102,Early Help,Third Party Payments,Services Rendered By Voluntary Sector,28/09/2012,44904.75,Revenue,4children
Leeds City Council,Childrens Services,103,Strategy Policy Planning & Participation,104,Commissioning & Market Management,Third Party Payments,Services Rendered By Voluntary Sector,11/01/2013,7920.75,Revenue,4children
Leeds City Council,Childrens Services,103,Learning Skills & Universal,102,Early Help,Third Party Payments,Services Rendered By Voluntary Sector,04/01/2013,44904.75,Revenue,4children
Leeds City Council,Childrens Services,103,Learning Skills & Universal,102,Early Help,Third Party Payments,Services Rendered By Voluntary Sector,04/01/2013,16889.75,Revenue,4children
Leeds City Council,Schools,10,Individual School Budget,100,Primary Schools,Supplies and Services,Other Hired & Contracted Services,03/12/2012,40,Revenue,4children
Leeds City Council,Schools,10,Individual School Budget,100,Primary Schools,Supplies and Services,Other Hired & Contracted Services,03/12/2012,40,Revenue,4children
Leeds City Council,Schools,10,Individual School Budget,100,Primary Schools,Supplies and Services,Other Hired & Contracted Services,31/01/2013,40,Revenue,4children
Leeds City Council,Schools,10,Individual School Budget,100,Primary Schools,Supplies and Services,Other Hired & Contracted Services,31/01/2013,40,Revenue,4children
Leeds City Council,Extended Schools Facilities,12,Extended Schools Facilities,0,Extended Schools Facilities,Supplies and Services,OFFICE FURNITURE & EQUIPMENT,05/07/2012,60,Revenue,4children
Leeds City Council,Extended Schools Facilities,12,Extended Schools Facilities,0,Extended Schools Facilities,Supplies and Services,OFFICE FURNITURE & EQUIPMENT,05/07/2012,0,Revenue,4children
Leeds City Council,Extended Schools Facilities,12,Extended Schools Facilities,0,Extended Schools Facilities,Supplies and Services,OFFICE FURNITURE & EQUIPMENT,05/07/2012,60,Revenue,4children
Leeds City Council,Extended Schools Facilities,12,Extended Schools Facilities,0,Extended Schools Facilities,Supplies and Services,Other Hired And Contracted Services,18/09/2012,72,Revenue,4children
Leeds City Council,Extended Schools Facilities,12,Extended Schools Facilities,0,Extended Schools Facilities,Supplies and Services,Other Hired And Contracted Services,25/10/2012,60,Revenue,4children
Leeds City Council,Extended Schools Facilities,12,Extended Schools Facilities,0,Extended Schools Facilities,Supplies and Services,Other Hired And Contracted Services,24/10/2012,60,Revenue,4children
Leeds City Council,Extended Schools Facilities,12,Extended Schools Facilities,0,Extended Schools Facilities,Supplies and Services,Other Hired And Contracted Services,24/05/2012,216,Revenue,4children
Leeds City Council,City Development,101,Employment & Skills,5,Jobs And Skills,Supplies and Services,Other Hired & Contracted Services,31/07/2012,3073.5,Revenue,4children
Leeds City Council,City Development,101,Employment & Skills,5,Jobs And Skills,Supplies and Services,Other Hired & Contracted Services,30/07/2012,1359,Revenue,4children
Leeds City Council,City Development,101,Employment & Skills,5,Jobs And Skills,Supplies and Services,Other Hired & Contracted Services,31/07/2012,1458,Revenue,4children
Leeds City Council,City Development,101,Employment & Skills,5,Jobs And Skills,Supplies and Services,Other Hired & Contracted Services,30/07/2012,1242,Revenue,4children
Leeds City Council,City Development,101,Employment & Skills,5,Jobs And Skills,Supplies and Services,Other Hired & Contracted Services,30/07/2012,1458,Revenue,4children
Leeds City Council,City Development,101,Employment & Skills,5,Jobs And Skills,Supplies and Services,Other Hired & Contracted Services,31/07/2012,-1458,Revenue,4children
Leeds City Council,Childrens Services,103,Learning Skills & Universal,102,Early Help,Third Party Payments,Services Rendered By Other Organisations,02/07/2012,2525.18,Revenue,4children
Leeds City Council,Childrens Services,103,Learning Skills & Universal,102,Early Help,Third Party Payments,Services Rendered By Other Organisations,20/07/2012,21334.2,Revenue,4children
Leeds City Council,Childrens Services,103,Learning Skills & Universal,102,Early Help,Third Party Payments,Services Rendered By Other Organisations,29/08/2012,14918.4,Revenue,4children
Leeds City Council,Childrens Services,103,Learning Skills & Universal,102,Early Help,Third Party Payments,Services Rendered By Other Organisations,03/08/2012,5107.05,Revenue,4children
Leeds City Council,Childrens Services,103,Learning Skills & Universal,102,Early Help,Third Party Payments,Services Provided By West Yorkshire Loc,10/05/2012,180,Revenue,4children
Leeds City Council,Childrens Services,103,Learning Skills & Universal,102,Early Help,Third Party Payments,Services Rendered By Other Organisations,27/03/2013,2134,Revenue,4children
Leeds City Council,Childrens Services,103,Learning Skills & Universal,102,Early Help,Third Party Payments,Services Rendered By Other Organisations,27/03/2013,3000,Revenue,4children
Leeds City Council,Childrens Services,103,Learning Skills & Universal,102,Early Help,Third Party Payments,Services Rendered By Other Organisations,14/12/2012,10996.4,Revenue,4children
Leeds City Council,Childrens Services,103,Learning Skills & Universal,102,Early Help,Third Party Payments,Services Rendered By Other Organisations,05/03/2013,4694.56,Revenue,4children
Leeds City Council,Childrens Services,103,Learning Skills & Universal,102,Early Help,Third Party Payments,Services Rendered By Other Organisations,01/03/2013,2667.5,Revenue,4children
Leeds City Council,Childrens Services,103,Learning Skills & Universal,102,Early Help,Third Party Payments,Services Rendered By Other Organisations,12/12/2012,6722.1,Revenue,4children
Leeds City Council,Childrens Services,103,Learning Skills & Universal,102,Early Help,Third Party Payments,Services Rendered By Other Organisations,16/11/2012,2525.18,Revenue,4children
Leeds City Council,Childrens Services,103,Learning Skills & Universal,102,Early Help,Third Party Payments,Services Rendered By Other Organisations,07/02/2013,2525.18,Revenue,4children
Leeds City Council,Childrens Services,103,Learning Skills & Universal,102,Early Help,Third Party Payments,Services Rendered By Other Organisations,10/12/2012,11018.23,Revenue,4children
Leeds City Council,Strategic Accounts,9,Miscellaneous,1,Miscellaneous,Supplies and Services,Grants To Outside Bodies,26/03/2013,400,Revenue,5th Roundhay Guides
Leeds City Council,Central & Corporate,105,Executive Support,17,Area Management,Supplies and Services,Grant Related Expenditure,15/05/2012,250,Revenue,6th Whinmoor Scouts
Leeds City Council,Extended Schools Facilities,12,Extended Schools Facilities,0,Extended Schools Facilities,Supplies and Services,Other Hired And Contracted Services,04/05/2012,15,Revenue,7th Horsforth Rainbows
Leeds City Council,Extended Schools Facilities,12,Extended Schools Facilities,0,Extended Schools Facilities,Supplies and Services,Other Hired And Contracted Services,04/10/2012,7.5,Revenue,7th Horsforth Rainbows
Leeds City Council,Central & Corporate,105,Executive Support,17,Area Management,Supplies and Services,Well Being Small Grants Projects,08/08/2012,500,Revenue,7th Leeds Boys Brigade
Leeds City Council,Strategic Accounts,9,Miscellaneous,1,Miscellaneous,Supplies and Services,Grants To Outside Bodies,05/02/2013,150,Revenue,7th Moor Allerton Brownies
Leeds City Council,Childrens Services,103,Safeguarding Targeted & Specialist,103,Child Protection & LAC,Third Party Payments,Payments To Voluntary Organisations,01/08/2012,600,Revenue,A National Voice
Leeds City Council,Childrens Services,103,Safeguarding Targeted & Specialist,103,Child Protection & LAC,Supplies and Services,Memberships,07/12/2012,-600,Revenue,A National Voice
Leeds City Council,Childrens Services,103,Safeguarding Targeted & Specialist,103,Child Protection & LAC,Supplies and Services,Memberships,07/12/2012,1758.23,Revenue,A National Voice
Leeds City Council,Childrens Services,103,Safeguarding Targeted & Specialist,103,Child Protection & LAC,Supplies and Services,Memberships,11/12/2012,1405.35,Revenue,A National Voice
Leeds City Council,Childrens Services,103,Safeguarding Targeted & Specialist,103,Child Protection & LAC,Supplies and Services,Memberships,05/04/2013,1671.04,Revenue,A National Voice
Leeds City Council,City Development,101,Planning & Sustainable Development,3,Planning Services,External Income,Planning Fees,07/01/2013,190,Revenue,Abbeyfield Bradford Society
Leeds City Council,Childrens Services,103,Safeguarding Targeted & Specialist,103,Child Protection & LAC,Supplies and Services,Courses For Non-Employees,23/04/2012,136.8,Revenue,ABC DAYCARE
Leeds City Council,Childrens Services,103,Learning Skills & Universal,102,Early Help,Third Party Payments,Services Rendered By Other Organisations,02/07/2012,241.48,Revenue,ABC DAYCARE
Leeds City Council,Childrens Services,103,Learning Skills & Universal,102,Early Help,Third Party Payments,Services Rendered By Other Organisations,20/07/2012,12210,Revenue,ABC DAYCARE
Leeds City Council,Childrens Services,103,Learning Skills & Universal,102,Early Help,Third Party Payments,Services Rendered By Other Organisations,29/08/2012,6837.6,Revenue,ABC DAYCARE
Leeds City Council,Childrens Services,103,Learning Skills & Universal,102,Early Help,Third Party Payments,Services Rendered By Other Organisations,14/12/2012,9235.2,Revenue,ABC DAYCARE
Leeds City Council,Childrens Services,103,Learning Skills & Universal,102,Early Help,Third Party Payments,Services Rendered By Other Organisations,03/12/2012,1649.33,Revenue,ABC DAYCARE
Leeds City Council,Childrens Services,103,Learning Skills & Universal,102,Early Help,Third Party Payments,Services Rendered By Other Organisations,16/11/2012,241.48,Revenue,ABC DAYCARE
Leeds City Council,Childrens Services,103,Learning Skills & Universal,102,Early Help,Third Party Payments,Services Rendered By Other Organisations,07/02/2013,241.48,Revenue,ABC DAYCARE
Leeds City Council,Schools,10,Individual School Budget,100,Secondary Schools,Supplies and Services,Examination Expenses,27/06/2012,30,Revenue,ABC Training Trust
Leeds City Council,Central & Corporate,105,Executive Support,17,Area Management,Supplies and Services,Grant Related Expenditure,05/10/2012,250,Revenue,Aberford CofE Primary School PTA
Leeds City Council,Central & Corporate,105,Support And Facilities General Fund,10,Civic And Community Buildings,Premises Related,Rents,15/05/2012,350,Revenue,Aberford Village Hall
Leeds City Council,Central & Corporate,105,Support And Facilities General Fund,10,Civic And Community Buildings,Premises Related,Rents,15/11/2012,350,Revenue,Aberford Village Hall
Leeds City Council,Central & Corporate,105,Leeds Initiative,16,Leeds Initiative,Supplies and Services,Conference Meetings,13/12/2012,300,Revenue,Abigail Housing
Leeds City Council,Schools,10,Individual School Budget,100,Secondary Schools,Employees,TUITION & COURSE FEES,07/09/2012,255,Revenue,Academies Enterprise Trust
Leeds City Council,Schools,10,Individual School Budget,100,Secondary Schools,Employees,TUITION & COURSE FEES,14/02/2013,625,Revenue,Academies Enterprise Trust
Leeds City Council,Schools,10,Individual School Budget,100,Secondary Schools,Employees,Training & Recruitment,04/05/2012,135,Revenue,ACCE
Leeds City Council,Schools,10,Individual School Budget,100,Secondary Schools,Supplies and Services,Curriculum,19/09/2012,50,Revenue,ACCE
Leeds City Council,Environment & Neighbourhoods,102,Environmental Health,2,Private Sector Renewal Support Grant,Construction (Capital),Construction,07/03/2013,2241,Capital,Accent Homes Ltd
Leeds City Council,Environment & Neighbourhoods,102,Environmental Health,2,Private Sector Renewal Support Grant,Construction (Capital),Construction,07/06/2012,1144.26,Capital,Accent Homes Ltd
Leeds City Council,Strategic Accounts,9,Miscellaneous,1,Miscellaneous,Supplies and Services,Grants To Outside Bodies,12/03/2013,100,Revenue,ACCESS COMMITTEE FOR LEEDS
Leeds City Council,Schools,10,Individual School Budget,100,Secondary Schools,Supplies and Services,Other Hired & Contracted Services,15/02/2013,1600,Revenue,ACHE Centre
Leeds City Council as Accountable Body,Shows,100,Shows,0,Shows,Transport Related,External Hire -Occasional,13/11/2012,1120,Revenue,ACHE Centre
Leeds City Council,Strategic Accounts,9,Miscellaneous,1,Miscellaneous,Supplies and Services,Grants To Outside Bodies,08/01/2013,300,Revenue,Acorn Football Club
Leeds City Council,Schools,10,Individual School Budget,100,Primary Schools,Supplies and Services,Other Hired & Contracted Services,16/07/2012,1909,Revenue,Action 4 Inclusion
Leeds City Council,Adult Social Care,7,Services For Adults Under 65 Mental/Dis,10,Other Services For Mental Health Needs,Third Party Payments,Other Agency Services,19/06/2012,104749,Revenue,Action For Blind People
Leeds City Council,Adult Social Care,7,Services For Adults Under 65 Mental/Dis,10,Other Services For Mental Health Needs,Third Party Payments,Other Agency Services,09/08/2012,128990,Revenue,Action For Blind People
Leeds City Council,Adult Social Care,7,Services For Adults Under 65 Mental/Dis,10,Other Services For Mental Health Needs,Third Party Payments,Other Agency Services,17/10/2012,128990,Revenue,Action For Blind People
Leeds City Council,Adult Social Care,7,Services For Adults Under 65 Mental/Dis,10,Other Services For Mental Health Needs,Third Party Payments,Other Agency Services,23/01/2013,128990,Revenue,Action For Blind People
Leeds City Council,Childrens Services,103,Safeguarding Targeted & Specialist,103,Child Protection & LAC,Third Party Payments,Services Rendered By Voluntary Sector,29/08/2012,124644,Revenue,Action For Children
Leeds City Council,Childrens Services,103,Safeguarding Targeted & Specialist,103,Child Protection & LAC,Third Party Payments,Independent Fostering Agencies,06/07/2012,4466,Revenue,Action For Children
Leeds City Council,Childrens Services,103,Safeguarding Targeted & Specialist,103,Child Protection & LAC,Third Party Payments,Independent Fostering Agencies,25/05/2012,4500,Revenue,Action For Children
Leeds City Council,Childrens Services,103,Safeguarding Targeted & Specialist,103,Child Protection & LAC,Third Party Payments,Independent Fostering Agencies,25/05/2012,4620,Revenue,Action For Children
Leeds City Council,Childrens Services,103,Safeguarding Targeted & Specialist,103,Child Protection & LAC,Third Party Payments,Independent Fostering Agencies,31/05/2012,1271.4,Revenue,Action For Children
Leeds City Council,Childrens Services,103,Safeguarding Targeted & Specialist,103,Child Protection & LAC,Third Party Payments,Independent Fostering Agencies,14/06/2012,4750,Revenue,Action For Children
Leeds City Council,Childrens Services,103,Safeguarding Targeted & Specialist,103,Child Protection & LAC,Third Party Payments,Independent Fostering Agencies,14/06/2012,4774,Revenue,Action For Children
Leeds City Council,Childrens Services,103,Safeguarding Targeted & Specialist,103,Child Protection & LAC,Third Party Payments,Independent Fostering Agencies,16/07/2012,4565,Revenue,Action For Children
Leeds City Council,Childrens Services,103,Safeguarding Targeted & Specialist,103,Child Protection & LAC,Third Party Payments,Independent Fostering Agencies,21/07/2012,4620,Revenue,Action For Children
Leeds City Council,Childrens Services,103,Safeguarding Targeted & Specialist,103,Child Protection & LAC,Third Party Payments,Independent Fostering Agencies,20/08/2012,195,Revenue,Action For Children
Leeds City Council,Childrens Services,103,Safeguarding Targeted & Specialist,103,Child Protection & LAC,Third Party Payments,Independent Fostering Agencies,30/07/2012,4680,Revenue,Action For Children
Leeds City Council,Childrens Services,103,Safeguarding Targeted & Specialist,103,Child Protection & LAC,Third Party Payments,Independent Fostering Agencies,30/07/2012,4774,Revenue,Action For Children
Leeds City Council,Childrens Services,103,Safeguarding Targeted & Specialist,103,Child Protection & LAC,Third Party Payments,Independent Fostering Agencies,20/08/2012,210,Revenue,Action For Children
Leeds City Council,Childrens Services,103,Safeguarding Targeted & Specialist,103,Child Protection & LAC,Third Party Payments,Independent Fostering Agencies,03/09/2012,4700,Revenue,Action For Children
Leeds City Council,Childrens Services,103,Safeguarding Targeted & Specialist,103,Child Protection & LAC,Third Party Payments,Independent Fostering Agencies,23/08/2012,4774,Revenue,Action For Children
Leeds City Council,Childrens Services,103,Safeguarding Targeted & Specialist,103,Child Protection & LAC,Third Party Payments,Independent Fostering Agencies,19/09/2012,4620,Revenue,Action For Children
Leeds City Council,Childrens Services,103,Safeguarding Targeted & Specialist,103,Child Protection & LAC,Third Party Payments,Adoptions - Allowances,16/07/2012,644,Revenue,Action For Children
Leeds City Council,Childrens Services,103,Safeguarding Targeted & Specialist,103,Child Protection & LAC,Third Party Payments,Adoptions - Allowances,16/08/2012,2015.1,Revenue,Action For Children
Leeds City Council,Childrens Services,103,Safeguarding Targeted & Specialist,103,Child Protection & LAC,Third Party Payments,Adoptions - Allowances,16/08/2012,3863,Revenue,Action For Children
Leeds City Council,Childrens Services,103,Safeguarding Targeted & Specialist,103,Child Protection & LAC,Third Party Payments,Adoptions - Allowances,12/04/2012,825,Revenue,Action For Children
Leeds City Council,Childrens Services,103,Safeguarding Targeted & Specialist,103,Child Protection & LAC,Third Party Payments,Adoptions - Allowances,12/04/2012,1194,Revenue,Action For Children
Leeds City Council,Childrens Services,103,Safeguarding Targeted & Specialist,103,Child Protection & LAC,Third Party Payments,Adoptions - Allowances,02/07/2012,825,Revenue,Action For Children
Leeds City Council,Childrens Services,103,Safeguarding Targeted & Specialist,103,Child Protection & LAC,Third Party Payments,Adoptions - Allowances,02/07/2012,825,Revenue,Action For Children
Leeds City Council,Childrens Services,103,Safeguarding Targeted & Specialist,103,Child Protection & LAC,Third Party Payments,Adoptions - Allowances,03/07/2012,1194,Revenue,Action For Children
Leeds City Council,Childrens Services,103,Safeguarding Targeted & Specialist,103,Child Protection & LAC,Third Party Payments,Adoptions - Allowances,06/08/2012,1194,Revenue,Action For Children
Leeds City Council,Childrens Services,103,Safeguarding Targeted & Specialist,103,Child Protection & LAC,Third Party Payments,Adoptions - Allowances,09/08/2012,1194,Revenue,Action For Children
Leeds City Council,Childrens Services,103,Safeguarding Targeted & Specialist,103,Child Protection & LAC,Third Party Payments,Adoptions - Allowances,06/06/2012,1194,Revenue,Action For Children
Leeds City Council,Childrens Services,103,Safeguarding Targeted & Specialist,103,Child Protection & LAC,Third Party Payments,Services Rendered By Voluntary Sector,15/04/2013,249288,Revenue,Action For Children
Leeds City Council,Childrens Services,103,Safeguarding Targeted & Specialist,103,Child Protection & LAC,Third Party Payments,Independent Fostering Agencies,05/10/2012,10863.38,Revenue,Action For Children
Leeds City Council,Childrens Services,103,Safeguarding Targeted & Specialist,103,Child Protection & LAC,Third Party Payments,Independent Fostering Agencies,01/10/2012,4550,Revenue,Action For Children
Leeds City Council,Childrens Services,103,Safeguarding Targeted & Specialist,103,Child Protection & LAC,Third Party Payments,Independent Fostering Agencies,05/11/2012,5026.34,Revenue,Action For Children
Leeds City Council,Childrens Services,103,Safeguarding Targeted & Specialist,103,Child Protection & LAC,Third Party Payments,Independent Fostering Agencies,05/11/2012,4690,Revenue,Action For Children
Leeds City Council,Childrens Services,103,Safeguarding Targeted & Specialist,103,Child Protection & LAC,Third Party Payments,Independent Fostering Agencies,05/11/2012,4774,Revenue,Action For Children
Leeds City Council,Childrens Services,103,Safeguarding Targeted & Specialist,103,Child Protection & LAC,Third Party Payments,Independent Fostering Agencies,22/11/2012,4864.2,Revenue,Action For Children
Leeds City Council,Childrens Services,103,Safeguarding Targeted & Specialist,103,Child Protection & LAC,Third Party Payments,Independent Fostering Agencies,22/11/2012,4520,Revenue,Action For Children
Leeds City Council,Childrens Services,103,Safeguarding Targeted & Specialist,103,Child Protection & LAC,Third Party Payments,Independent Fostering Agencies,22/11/2012,4620,Revenue,Action For Children
Leeds City Council,Childrens Services,103,Safeguarding Targeted & Specialist,103,Child Protection & LAC,Third Party Payments,Independent Fostering Agencies,14/01/2013,5026.34,Revenue,Action For Children
Leeds City Council,Childrens Services,103,Safeguarding Targeted & Specialist,103,Child Protection & LAC,Third Party Payments,Independent Fostering Agencies,14/01/2013,4650,Revenue,Action For Children
Leeds City Council,Childrens Services,103,Safeguarding Targeted & Specialist,103,Child Protection & LAC,Third Party Payments,Independent Fostering Agencies,14/01/2013,4774,Revenue,Action For Children
Leeds City Council,Childrens Services,103,Safeguarding Targeted & Specialist,103,Child Protection & LAC,Third Party Payments,Independent Fostering Agencies,18/01/2013,5026.34,Revenue,Action For Children
Leeds City Council,Childrens Services,103,Safeguarding Targeted & Specialist,103,Child Protection & LAC,Third Party Payments,Independent Fostering Agencies,18/01/2013,4650,Revenue,Action For Children
Leeds City Council,Childrens Services,103,Safeguarding Targeted & Specialist,103,Child Protection & LAC,Third Party Payments,Independent Fostering Agencies,18/01/2013,4774,Revenue,Action For Children
Leeds City Council,Childrens Services,103,Safeguarding Targeted & Specialist,103,Child Protection & LAC,Third Party Payments,Independent Fostering Agencies,01/03/2013,58,Revenue,Action For Children
Leeds City Council,Childrens Services,103,Safeguarding Targeted & Specialist,103,Child Protection & LAC,Third Party Payments,Independent Fostering Agencies,27/02/2013,4539.92,Revenue,Action For Children
Leeds City Council,Childrens Services,103,Safeguarding Targeted & Specialist,103,Child Protection & LAC,Third Party Payments,Independent Fostering Agencies,27/02/2013,4250,Revenue,Action For Children
Leeds City Council,Childrens Services,103,Safeguarding Targeted & Specialist,103,Child Protection & LAC,Third Party Payments,Independent Fostering Agencies,27/02/2013,4312,Revenue,Action For Children
Leeds City Council,Childrens Services,103,Safeguarding Targeted & Specialist,103,Child Protection & LAC,Third Party Payments,Interagency Adoptions,13/12/2012,-955.2,Revenue,Action For Children
Leeds City Council,Childrens Services,103,Safeguarding Targeted & Specialist,103,Child Protection & LAC,Third Party Payments,Interagency Adoptions,13/11/2012,1437.1,Revenue,Action For Children
Leeds City Council,Childrens Services,103,Safeguarding Targeted & Specialist,103,Child Protection & LAC,Third Party Payments,Interagency Adoptions,08/10/2012,1194,Revenue,Action For Children
Leeds City Council,Childrens Services,103,Safeguarding Targeted & Specialist,103,Child Protection & LAC,Third Party Payments,Interagency Adoptions,13/11/2012,1194,Revenue,Action For Children
Leeds City Council,Childrens Services,103,Safeguarding Targeted & Specialist,103,Child Protection & LAC,Third Party Payments,Interagency Adoptions,26/11/2012,1194,Revenue,Action For Children
Leeds City Council,Childrens Services,103,Safeguarding Targeted & Specialist,103,Child Protection & LAC,Third Party Payments,Interagency Adoptions,11/12/2012,1194,Revenue,Action For Children
Leeds City Council,Childrens Services,103,Safeguarding Targeted & Specialist,103,Child Protection & LAC,Third Party Payments,Services Rendered By Voluntary Sector,06/07/2012,36801,Revenue,Action For Children
Leeds City Council,Childrens Services,103,Safeguarding Targeted & Specialist,103,Child Protection & LAC,Third Party Payments,Services Rendered By Voluntary Sector,06/07/2012,36801,Revenue,Action For Children
Leeds City Council,Childrens Services,103,Safeguarding Targeted & Specialist,103,Child Protection & LAC,Third Party Payments,Services Rendered By Voluntary Sector,06/07/2012,36801,Revenue,Action For Children
Leeds City Council,Childrens Services,103,Safeguarding Targeted & Specialist,103,Child Protection & LAC,Third Party Payments,Services Rendered By Voluntary Sector,06/07/2012,36801,Revenue,Action For Children
Leeds City Council,Childrens Services,103,Safeguarding Targeted & Specialist,103,Child Protection & LAC,Third Party Payments,Services Rendered By Voluntary Sector,01/11/2012,124644,Revenue,Action For Children
Leeds City Council,Adult Social Care,7,Services For Older People - 65 And Over,7,Other Services To Older People,Third Party Payments,Other Agency Services,07/06/2012,17767.5,Revenue,ACTION FOR GIPTON ELDERLY
Leeds City Council,Adult Social Care,7,Services For Older People - 65 And Over,7,Other Services To Older People,Third Party Payments,Other Agency Services,07/06/2012,3238,Revenue,ACTION FOR GIPTON ELDERLY
Leeds City Council,Adult Social Care,7,Services For Older People - 65 And Over,7,Other Services To Older People,Third Party Payments,Other Agency Services,29/08/2012,17767.5,Revenue,ACTION FOR GIPTON ELDERLY
Leeds City Council,Adult Social Care,7,Services For Older People - 65 And Over,7,Other Services To Older People,Third Party Payments,Other Agency Services,29/08/2012,3238,Revenue,ACTION FOR GIPTON ELDERLY
Leeds City Council,Adult Social Care,7,Services For Older People - 65 And Over,7,Other Services To Older People,Third Party Payments,Other Agency Services,20/03/2012,17767.5,Revenue,ACTION FOR GIPTON ELDERLY
Leeds City Council,Adult Social Care,7,Services For Older People - 65 And Over,7,Other Services To Older People,Third Party Payments,Other Agency Services,20/03/2012,3238,Revenue,ACTION FOR GIPTON ELDERLY
Leeds City Council,Adult Social Care,7,Services For Older People - 65 And Over,7,Other Services To Older People,Third Party Payments,Other Agency Services,30/11/2012,17767.5,Revenue,ACTION FOR GIPTON ELDERLY
Leeds City Council,Adult Social Care,7,Services For Older People - 65 And Over,7,Other Services To Older People,Third Party Payments,Other Agency Services,30/11/2012,3238,Revenue,ACTION FOR GIPTON ELDERLY
Leeds City Council,Adult Social Care,7,Services For Adults Under 65 Mental/Dis,10,Assessment And Care Management,Third Party Payments,Services Provided By Other NHS Bodies,10/05/2012,138,Revenue,ACTION ON ELDER ABUSE
Leeds City Council,Adult Social Care,7,Social Services Support Services,16,Social Services Support Services,Employees,Tuition And Course Fees,25/01/2013,2,Revenue,ACTION ON ELDER ABUSE
Leeds City Council,Adult Social Care,7,Social Services Support Services,16,Social Services Support Services,Employees,Tuition And Course Fees,25/01/2013,15,Revenue,ACTION ON ELDER ABUSE
Leeds City Council,Adult Social Care,7,Social Services Support Services,16,Social Services Support Services,Supplies and Services,Books & Audio-Visual Materials,03/04/2013,17,Revenue,ACTION ON ELDER ABUSE
Leeds City Council as Accountable Body,West - North West,1,Customer And Tenancy,3,Sheltered Salaries,Supplies and Services,Stationery & External Printing,26/03/2013,20,Revenue,ACTION ON ELDER ABUSE
Leeds City Council,Schools,10,Individual School Budget,100,Secondary Schools,Premises Related,Building Repairs & Maintenance,07/02/2013,13.75,Revenue,Action On Hearing Loss
Leeds City Council,Schools,10,Individual School Budget,100,Primary Schools,Supplies and Services,Curriculum,07/09/2012,20,Revenue,ACTIONAID
Leeds City Council,Schools,10,Individual School Budget,100,Primary Schools,Supplies and Services,Curriculum,07/09/2012,10,Revenue,ACTIONAID
Leeds City Council,Schools,10,Individual School Budget,100,Primary Schools,Supplies and Services,Educational Visits,31/07/2012,75,Revenue,ACTIONAID
Leeds City Council,Schools,10,Individual School Budget,100,Primary Schools,Supplies and Services,Curriculum,11/12/2012,75,Revenue,ACTIONAID
Leeds City Council,Schools,10,Individual School Budget,100,Primary Schools,Supplies and Services,Curriculum,03/01/2013,24.98,Revenue,ACTIONAID
Leeds City Council,Schools,10,Individual School Budget,100,Primary Schools,Supplies and Services,Curriculum,25/02/2013,75,Revenue,ACTIONAID
Leeds City Council,Strategic Accounts,9,Miscellaneous,1,Miscellaneous,Supplies and Services,Grants To Outside Bodies,19/03/2013,150,Revenue,Activ8 Leeds
Leeds City Council,Central & Corporate,105,Executive Support,17,Area Management,Supplies and Services,Grant Related Expenditure,18/07/2012,250,Revenue,Activ8 Leeds
Leeds City Council,Extended Schools Facilities,12,Extended Schools Facilities,0,Extended Schools Facilities,Employees,Training Costs,14/11/2012,35,Revenue,Addaction
Leeds City Council as Accountable Body,West - North West,1,Regeneration/Customer Research,4,Tenant Involvement,Supplies and Services,Grants To Outside Bodies,19/02/2013,500,Revenue,ADEL CRAG COMMUNITY ASSOCIATION
Leeds City Council as Accountable Body,West - North West,1,Regeneration/Customer Research,4,Tenant Involvement,Supplies and Services,Grants To Outside Bodies,19/11/2012,175,Revenue,ADEL CRAG COMMUNITY ASSOCIATION
Leeds City Council,Central & Corporate,105,Support And Facilities General Fund,10,Civic And Community Buildings,Premises Related,Rents,21/05/2012,240,Revenue,Adel Methodist Church Trustees
Leeds City Council,Central & Corporate,105,Corporate Governance,12,Parlimentary Elections,Premises Related,Rents,15/11/2012,280,Revenue,Adel Methodist Church Trustees
Leeds City Council,Childrens Services,103,Learning Skills & Universal,102,Early Help,Third Party Payments,Services Rendered By Voluntary Sector,10/04/2012,7992,Revenue,ADEL PRE SCHOOL
Leeds City Council,Childrens Services,103,Learning Skills & Universal,102,Early Help,Third Party Payments,Services Rendered By Voluntary Sector,02/07/2012,383.22,Revenue,ADEL PRE SCHOOL
Leeds City Council,Childrens Services,103,Learning Skills & Universal,102,Early Help,Third Party Payments,Services Rendered By Voluntary Sector,20/07/2012,4499.94,Revenue,ADEL PRE SCHOOL
Leeds City Council,Childrens Services,103,Learning Skills & Universal,102,Early Help,Third Party Payments,Services Rendered By Voluntary Sector,29/08/2012,5860.8,Revenue,ADEL PRE SCHOOL
Leeds City Council,Childrens Services,103,Learning Skills & Universal,102,Early Help,Third Party Payments,Services Rendered By Voluntary Sector,14/12/2012,8986.56,Revenue,ADEL PRE SCHOOL
Leeds City Council,Childrens Services,103,Learning Skills & Universal,102,Early Help,Third Party Payments,Services Rendered By Voluntary Sector,05/03/2013,516.68,Revenue,ADEL PRE SCHOOL
Leeds City Council,Childrens Services,103,Learning Skills & Universal,102,Early Help,Third Party Payments,Services Rendered By Voluntary Sector,03/12/2012,1196.58,Revenue,ADEL PRE SCHOOL
Leeds City Council,Childrens Services,103,Learning Skills & Universal,102,Early Help,Third Party Payments,Services Rendered By Voluntary Sector,16/11/2012,383.22,Revenue,ADEL PRE SCHOOL
Leeds City Council,Childrens Services,103,Learning Skills & Universal,102,Early Help,Third Party Payments,Services Rendered By Voluntary Sector,07/02/2013,383.22,Revenue,ADEL PRE SCHOOL
Leeds City Council,Central & Corporate,105,Support And Facilities General Fund,10,Civic And Community Buildings,Premises Related,Rents,21/05/2012,500,Revenue,ADEL WAR MEMORIAL ASSOCIATION
Leeds City Council,Central & Corporate,105,Corporate Governance,12,Parlimentary Elections,Premises Related,Rents,15/11/2012,500,Revenue,ADEL WAR MEMORIAL ASSOCIATION
Leeds City Council,Central & Corporate,105,Area Well Being,26,Area Well Being,Construction (Capital),Construction,18/02/2013,957,Capital,Adel War Memorial Association (Drama)
Leeds City Council,Central & Corporate,105,Area Well Being,26,Area Well Being,Construction (Capital),Construction,13/12/2012,4000,Capital,Adel War Memorial Association (Drama)
Leeds City Council,Childrens Services,103,Safeguarding Targeted & Specialist,103,Child Protection & LAC,Third Party Payments,Adoptions - Allowances,30/07/2012,750,Revenue,ADOPTION MATTERS NORTHWEST
Leeds City Council,Childrens Services,103,Safeguarding Targeted & Specialist,103,Child Protection & LAC,Third Party Payments,Adoptions - Allowances,03/07/2012,750,Revenue,ADOPTION MATTERS NORTHWEST
Leeds City Council,Childrens Services,103,Safeguarding Targeted & Specialist,103,Child Protection & LAC,Third Party Payments,Adoptions - Allowances,25/05/2012,1194,Revenue,ADOPTION MATTERS NORTHWEST
Leeds City Council,Childrens Services,103,Safeguarding Targeted & Specialist,103,Child Protection & LAC,Third Party Payments,Adoptions - Allowances,25/06/2012,750,Revenue,ADOPTION MATTERS NORTHWEST
Leeds City Council,Childrens Services,103,Safeguarding Targeted & Specialist,103,Child Protection & LAC,Third Party Payments,Adoptions - Allowances,04/04/2012,1194,Revenue,ADOPTION MATTERS NORTHWEST
Leeds City Council,Childrens Services,103,Safeguarding Targeted & Specialist,103,Child Protection & LAC,Third Party Payments,Adoptions - Allowances,25/05/2012,750,Revenue,ADOPTION MATTERS NORTHWEST
Leeds City Council,Childrens Services,103,Safeguarding Targeted & Specialist,103,Child Protection & LAC,Third Party Payments,Adoptions - Allowances,26/04/2012,1194,Revenue,ADOPTION MATTERS NORTHWEST
Leeds City Council,Childrens Services,103,Safeguarding Targeted & Specialist,103,Child Protection & LAC,Third Party Payments,Adoptions - Allowances,02/07/2012,8358,Revenue,ADOPTION MATTERS NORTHWEST
Leeds City Council,Childrens Services,103,Safeguarding Targeted & Specialist,103,Child Protection & LAC,Third Party Payments,Adoptions - Allowances,02/07/2012,750,Revenue,ADOPTION MATTERS NORTHWEST
Leeds City Council,Childrens Services,103,Safeguarding Targeted & Specialist,103,Child Protection & LAC,Third Party Payments,Adoptions - Allowances,30/07/2012,310,Revenue,ADOPTION MATTERS NORTHWEST
Leeds City Council,Childrens Services,103,Safeguarding Targeted & Specialist,103,Child Protection & LAC,Third Party Payments,Adoptions - Allowances,11/04/2012,120,Revenue,ADOPTION MATTERS NORTHWEST
Leeds City Council,Childrens Services,103,Safeguarding Targeted & Specialist,103,Child Protection & LAC,Third Party Payments,Adoptions - Allowances,11/04/2012,340,Revenue,ADOPTION MATTERS NORTHWEST
Leeds City Council,Childrens Services,103,Safeguarding Targeted & Specialist,103,Child Protection & LAC,Third Party Payments,Adoptions - Allowances,22/06/2012,310,Revenue,ADOPTION MATTERS NORTHWEST
Leeds City Council,Childrens Services,103,Safeguarding Targeted & Specialist,103,Child Protection & LAC,Third Party Payments,Adoptions - Allowances,10/05/2012,310,Revenue,ADOPTION MATTERS NORTHWEST
Leeds City Council,Childrens Services,103,Safeguarding Targeted & Specialist,103,Child Protection & LAC,Third Party Payments,Interagency Adoptions,18/10/2012,750,Revenue,ADOPTION MATTERS NORTHWEST
Leeds City Council,Childrens Services,103,Safeguarding Targeted & Specialist,103,Child Protection & LAC,Third Party Payments,Interagency Adoptions,08/10/2012,750,Revenue,ADOPTION MATTERS NORTHWEST
Leeds City Council,Childrens Services,103,Safeguarding Targeted & Specialist,103,Child Protection & LAC,Third Party Payments,Interagency Adoptions,13/11/2012,750,Revenue,ADOPTION MATTERS NORTHWEST
Leeds City Council,Childrens Services,103,Safeguarding Targeted & Specialist,103,Child Protection & LAC,Third Party Payments,Adoptions - Allowances,26/11/2012,3000,Revenue,ADOPTION MATTERS NORTHWEST
Leeds City Council,Childrens Services,103,Safeguarding Targeted & Specialist,103,Child Protection & LAC,Third Party Payments,Adoptions - Allowances,21/11/2012,286.5,Revenue,ADOPTION MATTERS NORTHWEST
Leeds City Council,Childrens Services,103,Safeguarding Targeted & Specialist,103,Child Protection & LAC,Third Party Payments,Adoptions - Allowances,31/01/2013,573,Revenue,ADOPTION MATTERS NORTHWEST
Leeds City Council,Childrens Services,103,Safeguarding Targeted & Specialist,103,Child Protection & LAC,Third Party Payments,Adoptions - Allowances,21/02/2013,286.5,Revenue,ADOPTION MATTERS NORTHWEST
Leeds City Council,Childrens Services,103,Safeguarding Targeted & Specialist,103,Child Protection & LAC,Third Party Payments,Adoptions - Allowances,27/02/2013,180,Revenue,ADOPTION MATTERS NORTHWEST
Leeds City Council,Childrens Services,103,Safeguarding Targeted & Specialist,103,Child Protection & LAC,Third Party Payments,Adoptions - Allowances,06/04/2013,303.25,Revenue,ADOPTION MATTERS NORTHWEST
Leeds City Council,Childrens Services,103,Safeguarding Targeted & Specialist,103,Child Protection & LAC,Third Party Payments,Payments To Voluntary Organisations,25/05/2012,1230,Revenue,ADOPTION UK
Leeds City Council,Childrens Services,103,Safeguarding Targeted & Specialist,103,Child Protection & LAC,Third Party Payments,Payments To Voluntary Organisations,01/08/2012,922.5,Revenue,ADOPTION UK
Leeds City Council,Childrens Services,103,Safeguarding Targeted & Specialist,103,Child Protection & LAC,Supplies and Services,Memberships,04/03/2013,1150,Revenue,ADOPTION UK
Leeds City Council,Childrens Services,103,Safeguarding Targeted & Specialist,103,Child Protection & LAC,Third Party Payments,Adoptions - Allowances,21/11/2012,25,Revenue,ADOPTION UK
Leeds City Council,Childrens Services,103,Safeguarding Targeted & Specialist,103,Child Protection & LAC,Third Party Payments,Adoptions - Allowances,08/01/2013,1920,Revenue,ADOPTION UK
Leeds City Council,Childrens Services,103,Safeguarding Targeted & Specialist,103,Child Protection & LAC,Third Party Payments,Adoptions - Allowances,04/04/2013,1920,Revenue,ADOPTION UK
Leeds City Council,Childrens Services,103,Safeguarding Targeted & Specialist,103,Child Protection & LAC,Third Party Payments,Payments To Voluntary Organisations,12/11/2012,3075,Revenue,ADOPTION UK
Leeds City Council,Childrens Services,103,Safeguarding Targeted & Specialist,103,Child Protection & LAC,Third Party Payments,Payments To Voluntary Organisations,04/03/2013,3997.5,Revenue,ADOPTION UK
Leeds City Council,Adult Social Care,7,Other Adult Services,12,Substance Abuse (Addictions),Third Party Payments,Residential - Drugs & Alcohol,15/05/2012,18656.25,Revenue,ADS
Leeds City Council,Adult Social Care,7,Other Adult Services,12,Substance Abuse (Addictions),Third Party Payments,Residential - Drugs & Alcohol,20/07/2012,18656.25,Revenue,ADS
Leeds City Council,Adult Social Care,7,Other Adult Services,12,Substance Abuse (Addictions),Third Party Payments,Other Agency Services,15/01/2013,18656.25,Revenue,ADS
Leeds City Council,Adult Social Care,7,Other Adult Services,12,Substance Abuse (Addictions),Third Party Payments,Residential - Drugs & Alcohol,01/10/2012,18656.25,Revenue,ADS
Leeds City Council,Environment & Neighbourhoods,102,Safer Leeds Drugs Team,6,Other Grants,Third Party Payments,Services Rendered By Vol Sector Orgs,12/06/2012,10000,Revenue,ADS
Leeds City Council,Environment & Neighbourhoods,102,Safer Leeds Drugs Team,6,Safer Leeds Drugs Team,Supplies and Services,Grants To Voluntary Organisations,12/06/2012,-10000,Revenue,ADS
Leeds City Council,Environment & Neighbourhoods,102,Safer Leeds Drugs Team,6,Safer Leeds Drugs Team,Supplies and Services,Grants To Voluntary Organisations,27/06/2012,10000,Revenue,ADS
Leeds City Council as Accountable Body,Jcs For People With Learning Disabilitie,1,Jcs For People With Learning Disabilitie,0,Jcs For People With Learning Disabilitie,Third Party Payments,Supported Accommodation,17/09/2012,1332.2,Revenue,Adult Placement Services
Leeds City Council as Accountable Body,Jcs For People With Learning Disabilitie,1,Jcs For People With Learning Disabilitie,0,Jcs For People With Learning Disabilitie,Third Party Payments,Supported Accommodation,06/09/2012,823.81,Revenue,Adult Placement Services
Leeds City Council as Accountable Body,Jcs For People With Learning Disabilitie,1,Jcs For People With Learning Disabilitie,0,Jcs For People With Learning Disabilitie,Third Party Payments,Supported Accommodation,23/08/2012,1332.2,Revenue,Adult Placement Services
Leeds City Council as Accountable Body,Jcs For People With Learning Disabilitie,1,Jcs For People With Learning Disabilitie,0,Jcs For People With Learning Disabilitie,Third Party Payments,Supported Accommodation,06/08/2012,823.81,Revenue,Adult Placement Services
Leeds City Council as Accountable Body,Jcs For People With Learning Disabilitie,1,Jcs For People With Learning Disabilitie,0,Jcs For People With Learning Disabilitie,Third Party Payments,Supported Accommodation,03/08/2012,1332.2,Revenue,Adult Placement Services
Leeds City Council as Accountable Body,Jcs For People With Learning Disabilitie,1,Jcs For People With Learning Disabilitie,0,Jcs For People With Learning Disabilitie,Third Party Payments,Supported Accommodation,02/08/2012,1332.2,Revenue,Adult Placement Services
Leeds City Council as Accountable Body,Jcs For People With Learning Disabilitie,1,Jcs For People With Learning Disabilitie,0,Jcs For People With Learning Disabilitie,Third Party Payments,Supported Accommodation,31/07/2012,339,Revenue,Adult Placement Services
Leeds City Council as Accountable Body,Jcs For People With Learning Disabilitie,1,Jcs For People With Learning Disabilitie,0,Jcs For People With Learning Disabilitie,Third Party Payments,Supported Accommodation,31/07/2012,169.5,Revenue,Adult Placement Services
Leeds City Council as Accountable Body,Jcs For People With Learning Disabilitie,1,Jcs For People With Learning Disabilitie,0,Jcs For People With Learning Disabilitie,Third Party Payments,Supported Accommodation,31/07/2012,1332.2,Revenue,Adult Placement Services
Leeds City Council as Accountable Body,Jcs For People With Learning Disabilitie,1,Jcs For People With Learning Disabilitie,0,Jcs For People With Learning Disabilitie,Third Party Payments,Supported Accommodation,26/07/2012,1332.2,Revenue,Adult Placement Services
Leeds City Council as Accountable Body,Jcs For People With Learning Disabilitie,1,Jcs For People With Learning Disabilitie,0,Jcs For People With Learning Disabilitie,Third Party Payments,Home Care,04/05/2012,565,Revenue,Adult Placement Services
Leeds City Council as Accountable Body,Jcs For People With Learning Disabilitie,1,Jcs For People With Learning Disabilitie,0,Jcs For People With Learning Disabilitie,Third Party Payments,Home Care,02/04/2013,1332.2,Revenue,Adult Placement Services
Leeds City Council as Accountable Body,Jcs For People With Learning Disabilitie,1,Jcs For People With Learning Disabilitie,0,Jcs For People With Learning Disabilitie,Third Party Payments,Home Care,16/04/2013,1332.2,Revenue,Adult Placement Services
Leeds City Council as Accountable Body,Jcs For People With Learning Disabilitie,1,Jcs For People With Learning Disabilitie,0,Jcs For People With Learning Disabilitie,Third Party Payments,Home Care,10/04/2013,625.44,Revenue,Adult Placement Services
Leeds City Council as Accountable Body,Jcs For People With Learning Disabilitie,1,Jcs For People With Learning Disabilitie,0,Jcs For People With Learning Disabilitie,Third Party Payments,Home Care,27/02/2013,1332.2,Revenue,Adult Placement Services
Leeds City Council as Accountable Body,Jcs For People With Learning Disabilitie,1,Jcs For People With Learning Disabilitie,0,Jcs For People With Learning Disabilitie,Third Party Payments,Home Care,08/03/2013,573.32,Revenue,Adult Placement Services
Leeds City Council as Accountable Body,Jcs For People With Learning Disabilitie,1,Jcs For People With Learning Disabilitie,0,Jcs For People With Learning Disabilitie,Third Party Payments,Home Care,08/03/2013,52.12,Revenue,Adult Placement Services
Leeds City Council as Accountable Body,Jcs For People With Learning Disabilitie,1,Jcs For People With Learning Disabilitie,0,Jcs For People With Learning Disabilitie,Third Party Payments,Home Care,20/02/2013,395.5,Revenue,Adult Placement Services
Leeds City Council as Accountable Body,Jcs For People With Learning Disabilitie,1,Jcs For People With Learning Disabilitie,0,Jcs For People With Learning Disabilitie,Third Party Payments,Home Care,06/02/2013,143.33,Revenue,Adult Placement Services
Leeds City Council as Accountable Body,Jcs For People With Learning Disabilitie,1,Jcs For People With Learning Disabilitie,0,Jcs For People With Learning Disabilitie,Third Party Payments,Home Care,01/02/2013,1332.2,Revenue,Adult Placement Services
Leeds City Council as Accountable Body,Jcs For People With Learning Disabilitie,1,Jcs For People With Learning Disabilitie,0,Jcs For People With Learning Disabilitie,Third Party Payments,Home Care,18/01/2013,832.86,Revenue,Adult Placement Services
Leeds City Council as Accountable Body,Jcs For People With Learning Disabilitie,1,Jcs For People With Learning Disabilitie,0,Jcs For People With Learning Disabilitie,Third Party Payments,Home Care,17/01/2013,1332.2,Revenue,Adult Placement Services
Leeds City Council as Accountable Body,Jcs For People With Learning Disabilitie,1,Jcs For People With Learning Disabilitie,0,Jcs For People With Learning Disabilitie,Third Party Payments,Home Care,10/01/2013,565,Revenue,Adult Placement Services
Leeds City Council as Accountable Body,Jcs For People With Learning Disabilitie,1,Jcs For People With Learning Disabilitie,0,Jcs For People With Learning Disabilitie,Third Party Payments,Home Care,12/12/2012,1332.2,Revenue,Adult Placement Services
Leeds City Council as Accountable Body,Jcs For People With Learning Disabilitie,1,Jcs For People With Learning Disabilitie,0,Jcs For People With Learning Disabilitie,Third Party Payments,Home Care,09/11/2012,1332.2,Revenue,Adult Placement Services
Leeds City Council as Accountable Body,Jcs For People With Learning Disabilitie,1,Jcs For People With Learning Disabilitie,0,Jcs For People With Learning Disabilitie,Third Party Payments,Home Care,23/10/2012,823.81,Revenue,Adult Placement Services
Leeds City Council as Accountable Body,Jcs For People With Learning Disabilitie,1,Jcs For People With Learning Disabilitie,0,Jcs For People With Learning Disabilitie,Third Party Payments,Home Care,23/10/2012,1332.2,Revenue,Adult Placement Services
Leeds City Council as Accountable Body,East - North East,1,Construction Services,7,Lebs,Supplies and Services,Other Hired And Contracted Services,27/02/2013,76,Revenue,Adult Placement Services
Leeds City Council as Accountable Body,East - North East,1,Construction Services,7,Lebs,Supplies and Services,Other Hired And Contracted Services,27/02/2013,38,Revenue,Adult Placement Services
Leeds City Council as Accountable Body,East - North East,1,Construction Services,7,Lebs,Supplies and Services,Other Hired And Contracted Services,27/02/2013,38,Revenue,Adult Placement Services
Leeds City Council as Accountable Body,East - North East,1,Construction Services,7,Lebs,Supplies and Services,Other Hired And Contracted Services,27/02/2013,38,Revenue,Adult Placement Services
Leeds City Council as Accountable Body,East - North East,1,Construction Services,7,Lebs,Supplies and Services,Other Hired And Contracted Services,27/02/2013,28.5,Revenue,Adult Placement Services
Leeds City Council as Accountable Body,East - North East,1,Construction Services,7,Lebs,Supplies and Services,Other Hired And Contracted Services,27/02/2013,323,Revenue,Adult Placement Services
Leeds City Council as Accountable Body,East - North East,1,Construction Services,7,Lebs,Supplies and Services,Other Hired And Contracted Services,27/02/2013,38,Revenue,Adult Placement Services
Leeds City Council as Accountable Body,East - North East,1,Construction Services,7,Lebs,Supplies and Services,Other Hired And Contracted Services,27/02/2013,38,Revenue,Adult Placement Services
Leeds City Council as Accountable Body,East - North East,1,Construction Services,7,Lebs,Supplies and Services,Other Hired And Contracted Services,27/02/2013,190,Revenue,Adult Placement Services
Leeds City Council as Accountable Body,East - North East,1,Construction Services,7,Lebs,Supplies and Services,Other Hired And Contracted Services,27/02/2013,38,Revenue,Adult Placement Services
Leeds City Council as Accountable Body,East - North East,1,Construction Services,7,Lebs,Supplies and Services,Other Hired And Contracted Services,27/02/2013,76,Revenue,Adult Placement Services
Leeds City Council as Accountable Body,East - North East,1,Construction Services,7,Lebs,Supplies and Services,Other Hired And Contracted Services,27/02/2013,95,Revenue,Adult Placement Services
Leeds City Council as Accountable Body,East - North East,1,Construction Services,7,Lebs,Supplies and Services,Other Hired And Contracted Services,08/02/2013,57,Revenue,Adult Placement Services
Leeds City Council as Accountable Body,East - North East,1,Construction Services,7,Lebs,Supplies and Services,Other Hired And Contracted Services,08/02/2013,19,Revenue,Adult Placement Services
Leeds City Council as Accountable Body,East - North East,1,Construction Services,7,Lebs,Supplies and Services,Other Hired And Contracted Services,08/02/2013,4.75,Revenue,Adult Placement Services
Leeds City Council as Accountable Body,East - North East,1,Construction Services,7,Lebs,Supplies and Services,Other Hired And Contracted Services,08/02/2013,19,Revenue,Adult Placement Services
Leeds City Council as Accountable Body,East - North East,1,Construction Services,7,Lebs,Supplies and Services,Other Hired And Contracted Services,08/02/2013,19,Revenue,Adult Placement Services
Leeds City Council as Accountable Body,East - North East,1,Construction Services,7,Lebs,Supplies and Services,Other Hired And Contracted Services,08/02/2013,38,Revenue,Adult Placement Services
Leeds City Council as Accountable Body,East - North East,1,Construction Services,7,Lebs,Supplies and Services,Other Hired And Contracted Services,08/02/2013,38,Revenue,Adult Placement Services
Leeds City Council as Accountable Body,East - North East,1,Construction Services,7,Lebs,Supplies and Services,Other Hired And Contracted Services,08/02/2013,228,Revenue,Adult Placement Services
Leeds City Council as Accountable Body,East - North East,1,Construction Services,7,Lebs,Supplies and Services,Other Hired And Contracted Services,08/02/2013,57,Revenue,Adult Placement Services
Leeds City Council as Accountable Body,East - North East,1,Construction Services,7,Lebs,Supplies and Services,Other Hired And Contracted Services,08/02/2013,19,Revenue,Adult Placement Services
Leeds City Council as Accountable Body,East - North East,1,Construction Services,7,Lebs,Supplies and Services,Other Hired And Contracted Services,08/02/2013,19,Revenue,Adult Placement Services
Leeds City Council as Accountable Body,East - North East,1,Construction Services,7,Lebs,Supplies and Services,Other Hired And Contracted Services,08/02/2013,38,Revenue,Adult Placement Services
Leeds City Council as Accountable Body,East - North East,1,Construction Services,7,Lebs,Supplies and Services,Other Hired And Contracted Services,16/01/2013,19,Revenue,Adult Placement Services
Leeds City Council as Accountable Body,East - North East,1,Construction Services,7,Lebs,Supplies and Services,Other Hired And Contracted Services,16/01/2013,133,Revenue,Adult Placement Services
Leeds City Council as Accountable Body,East - North East,1,Construction Services,7,Lebs,Supplies and Services,Other Hired And Contracted Services,16/01/2013,95,Revenue,Adult Placement Services
Leeds City Council as Accountable Body,East - North East,1,Construction Services,7,Lebs,Supplies and Services,Other Hired And Contracted Services,16/01/2013,76,Revenue,Adult Placement Services
Leeds City Council as Accountable Body,East - North East,1,Construction Services,7,Lebs,Supplies and Services,Other Hired And Contracted Services,16/01/2013,304,Revenue,Adult Placement Services
Leeds City Council as Accountable Body,East - North East,1,Construction Services,7,Lebs,Supplies and Services,Other Hired And Contracted Services,16/01/2013,76,Revenue,Adult Placement Services
Leeds City Council as Accountable Body,East - North East,1,Construction Services,7,Lebs,Supplies and Services,Other Hired And Contracted Services,16/01/2013,380,Revenue,Adult Placement Services
Leeds City Council as Accountable Body,East - North East,1,Construction Services,7,Lebs,Supplies and Services,Other Hired And Contracted Services,16/01/2013,85.5,Revenue,Adult Placement Services
Leeds City Council as Accountable Body,East - North East,1,Construction Services,7,Lebs,Supplies and Services,Other Hired And Contracted Services,16/01/2013,19,Revenue,Adult Placement Services
Leeds City Council as Accountable Body,East - North East,1,Construction Services,7,Lebs,Supplies and Services,Other Hired And Contracted Services,16/01/2013,57,Revenue,Adult Placement Services
Leeds City Council as Accountable Body,East - North East,1,Construction Services,7,Lebs,Supplies and Services,Other Hired And Contracted Services,16/01/2013,61.75,Revenue,Adult Placement Services
Leeds City Council as Accountable Body,East - North East,1,Construction Services,7,Lebs,Supplies and Services,Other Hired And Contracted Services,16/01/2013,76,Revenue,Adult Placement Services
Leeds City Council as Accountable Body,East - North East,1,Construction Services,7,Lebs,Supplies and Services,Other Hired And Contracted Services,16/01/2013,228,Revenue,Adult Placement Services
Leeds City Council as Accountable Body,East - North East,1,Construction Services,7,Lebs,Supplies and Services,Other Hired And Contracted Services,16/01/2013,57,Revenue,Adult Placement Services
Leeds City Council as Accountable Body,East - North East,1,Construction Services,7,Lebs,Supplies and Services,Other Hired And Contracted Services,16/01/2013,76,Revenue,Adult Placement Services
Leeds City Council as Accountable Body,East - North East,1,Construction Services,7,Lebs,Supplies and Services,Other Hired And Contracted Services,16/01/2013,114,Revenue,Adult Placement Services
Leeds City Council as Accountable Body,East - North East,1,Construction Services,7,Lebs,Supplies and Services,Other Hired And Contracted Services,17/12/2012,114,Revenue,Adult Placement Services
Leeds City Council as Accountable Body,East - North East,1,Construction Services,7,Lebs,Supplies and Services,Other Hired And Contracted Services,17/12/2012,380,Revenue,Adult Placement Services
Leeds City Council as Accountable Body,East - North East,1,Construction Services,7,Lebs,Supplies and Services,Other Hired And Contracted Services,17/12/2012,76,Revenue,Adult Placement Services
Leeds City Council as Accountable Body,East - North East,1,Construction Services,7,Lebs,Supplies and Services,Other Hired And Contracted Services,17/12/2012,494,Revenue,Adult Placement Services
Leeds City Council as Accountable Body,East - North East,1,Construction Services,7,Lebs,Supplies and Services,Other Hired And Contracted Services,17/12/2012,152,Revenue,Adult Placement Services
Leeds City Council as Accountable Body,East - North East,1,Construction Services,7,Lebs,Supplies and Services,Other Hired And Contracted Services,17/12/2012,228,Revenue,Adult Placement Services
Leeds City Council as Accountable Body,East - North East,1,Construction Services,7,Lebs,Supplies and Services,Other Hired And Contracted Services,17/12/2012,152,Revenue,Adult Placement Services
Leeds City Council as Accountable Body,East - North East,1,Construction Services,7,Lebs,Supplies and Services,Other Hired And Contracted Services,17/12/2012,152,Revenue,Adult Placement Services
Leeds City Council as Accountable Body,East - North East,1,Construction Services,7,Lebs,Supplies and Services,Other Hired And Contracted Services,17/12/2012,674.5,Revenue,Adult Placement Services
Leeds City Council as Accountable Body,East - North East,1,Construction Services,7,Lebs,Supplies and Services,Other Hired And Contracted Services,14/12/2012,123.5,Revenue,Adult Placement Services
Leeds City Council as Accountable Body,East - North East,1,Construction Services,7,Lebs,Supplies and Services,Other Hired And Contracted Services,14/12/2012,76,Revenue,Adult Placement Services
Leeds City Council as Accountable Body,East - North East,1,Construction Services,7,Lebs,Supplies and Services,Other Hired And Contracted Services,14/12/2012,120.4,Revenue,Adult Placement Services
Leeds City Council as Accountable Body,East - North East,1,Construction Services,7,Lebs,Supplies and Services,Other Hired And Contracted Services,14/12/2012,158.4,Revenue,Adult Placement Services
Leeds City Council as Accountable Body,East - North East,1,Construction Services,7,Lebs,Supplies and Services,Other Hired And Contracted Services,14/12/2012,120.4,Revenue,Adult Placement Services
Leeds City Council as Accountable Body,East - North East,1,Construction Services,7,Lebs,Supplies and Services,Other Hired And Contracted Services,14/12/2012,117.8,Revenue,Adult Placement Services
Leeds City Council as Accountable Body,East - North East,1,Construction Services,7,Lebs,Supplies and Services,Other Hired And Contracted Services,14/12/2012,115.9,Revenue,Adult Placement Services
Leeds City Council as Accountable Body,East - North East,1,Construction Services,7,Lebs,Supplies and Services,Other Hired And Contracted Services,12/10/2012,152,Revenue,Adult Placement Services
Leeds City Council as Accountable Body,East - North East,1,Construction Services,7,Lebs,Supplies and Services,Other Hired And Contracted Services,12/10/2012,209,Revenue,Adult Placement Services
Leeds City Council as Accountable Body,East - North East,1,Construction Services,7,Lebs,Supplies and Services,Other Hired And Contracted Services,12/10/2012,152,Revenue,Adult Placement Services
Leeds City Council as Accountable Body,East - North East,1,Construction Services,7,Lebs,Supplies and Services,Other Hired And Contracted Services,12/10/2012,304,Revenue,Adult Placement Services
Leeds City Council as Accountable Body,East - North East,1,Construction Services,7,Lebs,Supplies and Services,Other Hired And Contracted Services,12/10/2012,190,Revenue,Adult Placement Services
Leeds City Council as Accountable Body,East - North East,1,Construction Services,7,Lebs,Supplies and Services,Other Hired And Contracted Services,12/10/2012,152,Revenue,Adult Placement Services
Leeds City Council as Accountable Body,East - North East,1,Construction Services,7,Lebs,Supplies and Services,Other Hired And Contracted Services,12/10/2012,190,Revenue,Adult Placement Services
Leeds City Council as Accountable Body,East - North East,1,Construction Services,7,Lebs,Supplies and Services,Other Hired And Contracted Services,04/10/2012,171,Revenue,Adult Placement Services
Leeds City Council as Accountable Body,East - North East,1,Construction Services,7,Lebs,Supplies and Services,Other Hired And Contracted Services,04/10/2012,76,Revenue,Adult Placement Services
Leeds City Council as Accountable Body,East - North East,1,Construction Services,7,Lebs,Supplies and Services,Other Hired And Contracted Services,04/10/2012,152,Revenue,Adult Placement Services
Leeds City Council as Accountable Body,East - North East,1,Construction Services,7,Lebs,Supplies and Services,Other Hired And Contracted Services,04/10/2012,190,Revenue,Adult Placement Services
Leeds City Council as Accountable Body,East - North East,1,Construction Services,7,Lebs,Supplies and Services,Other Hired And Contracted Services,04/10/2012,228,Revenue,Adult Placement Services
Leeds City Council as Accountable Body,East - North East,1,Construction Services,7,Lebs,Supplies and Services,Other Hired And Contracted Services,04/10/2012,304,Revenue,Adult Placement Services
Leeds City Council as Accountable Body,East - North East,1,Construction Services,7,Lebs,Supplies and Services,Other Hired And Contracted Services,04/10/2012,38,Revenue,Adult Placement Services
Leeds City Council as Accountable Body,East - North East,1,Construction Services,7,Lebs,Supplies and Services,Other Hired And Contracted Services,04/10/2012,190,Revenue,Adult Placement Services
Leeds City Council as Accountable Body,East - North East,1,Construction Services,7,Lebs,Supplies and Services,Other Hired And Contracted Services,04/10/2012,247,Revenue,Adult Placement Services
Leeds City Council as Accountable Body,East - North East,1,Construction Services,7,Lebs,Supplies and Services,Other Hired And Contracted Services,04/10/2012,114,Revenue,Adult Placement Services
Leeds City Council as Accountable Body,East - North East,1,Construction Services,7,Lebs,Supplies and Services,Other Hired And Contracted Services,04/10/2012,133,Revenue,Adult Placement Services
Leeds City Council as Accountable Body,East - North East,1,Construction Services,7,Lebs,Supplies and Services,Other Hired And Contracted Services,04/10/2012,228,Revenue,Adult Placement Services
Leeds City Council as Accountable Body,East - North East,1,Construction Services,7,Lebs,Supplies and Services,Other Hired And Contracted Services,04/10/2012,190,Revenue,Adult Placement Services
Leeds City Council as Accountable Body,East - North East,1,Construction Services,7,Lebs,Supplies and Services,Other Hired And Contracted Services,04/10/2012,266,Revenue,Adult Placement Services
Leeds City Council as Accountable Body,East - North East,1,Construction Services,7,Lebs,Supplies and Services,Other Hired And Contracted Services,04/10/2012,171,Revenue,Adult Placement Services
Leeds City Council as Accountable Body,East - North East,1,Construction Services,7,Lebs,Supplies and Services,Other Hired And Contracted Services,04/10/2012,114,Revenue,Adult Placement Services
Leeds City Council as Accountable Body,East - North East,1,Construction Services,7,Lebs,Supplies and Services,Other Hired And Contracted Services,04/10/2012,95,Revenue,Adult Placement Services
Leeds City Council as Accountable Body,East - North East,1,Construction Services,7,Lebs,Supplies and Services,Other Hired And Contracted Services,04/10/2012,228,Revenue,Adult Placement Services
Leeds City Council as Accountable Body,East - North East,1,Construction Services,7,Lebs,Supplies and Services,Other Hired And Contracted Services,04/10/2012,152,Revenue,Adult Placement Services
Leeds City Council as Accountable Body,East - North East,1,Construction Services,7,Lebs,Supplies and Services,Other Hired And Contracted Services,04/10/2012,152,Revenue,Adult Placement Services
Leeds City Council as Accountable Body,East - North East,1,Construction Services,7,Lebs,Supplies and Services,Other Hired And Contracted Services,04/10/2012,38,Revenue,Adult Placement Services
Leeds City Council as Accountable Body,East - North East,1,Construction Services,7,Lebs,Supplies and Services,Other Hired And Contracted Services,27/09/2012,228,Revenue,Adult Placement Services
Leeds City Council as Accountable Body,East - North East,1,Construction Services,7,Lebs,Supplies and Services,Other Hired And Contracted Services,27/09/2012,190,Revenue,Adult Placement Services
Leeds City Council as Accountable Body,East - North East,1,Construction Services,7,Lebs,Supplies and Services,Other Hired And Contracted Services,27/09/2012,85.5,Revenue,Adult Placement Services
Leeds City Council as Accountable Body,East - North East,1,Construction Services,7,Lebs,Supplies and Services,Other Hired And Contracted Services,27/09/2012,85.5,Revenue,Adult Placement Services
Leeds City Council as Accountable Body,East - North East,1,Construction Services,7,Lebs,Supplies and Services,Other Hired And Contracted Services,27/09/2012,342,Revenue,Adult Placement Services
Leeds City Council as Accountable Body,East - North East,1,Construction Services,7,Lebs,Supplies and Services,Other Hired And Contracted Services,27/09/2012,57,Revenue,Adult Placement Services
Leeds City Council as Accountable Body,East - North East,1,Construction Services,7,Lebs,Supplies and Services,Other Hired And Contracted Services,27/09/2012,218.5,Revenue,Adult Placement Services
Leeds City Council as Accountable Body,East - North East,1,Construction Services,7,Lebs,Supplies and Services,Other Hired And Contracted Services,27/09/2012,76,Revenue,Adult Placement Services
Leeds City Council as Accountable Body,East - North East,1,Construction Services,7,Lebs,Supplies and Services,Other Hired And Contracted Services,27/09/2012,266,Revenue,Adult Placement Services
Leeds City Council as Accountable Body,East - North East,1,Construction Services,7,Lebs,Supplies and Services,Other Hired And Contracted Services,27/09/2012,57,Revenue,Adult Placement Services
Leeds City Council as Accountable Body,East - North East,1,Construction Services,7,Lebs,Supplies and Services,Other Hired And Contracted Services,27/09/2012,76,Revenue,Adult Placement Services
Leeds City Council as Accountable Body,East - North East,1,Construction Services,7,Lebs,Supplies and Services,Other Hired And Contracted Services,27/09/2012,171,Revenue,Adult Placement Services
Leeds City Council as Accountable Body,East - North East,1,Construction Services,7,Lebs,Supplies and Services,Other Hired And Contracted Services,27/09/2012,57,Revenue,Adult Placement Services
Leeds City Council as Accountable Body,East - North East,1,Construction Services,7,Lebs,Supplies and Services,Other Hired And Contracted Services,27/09/2012,142.5,Revenue,Adult Placement Services
Leeds City Council as Accountable Body,East - North East,1,Construction Services,7,Lebs,Supplies and Services,Other Hired And Contracted Services,27/09/2012,66.5,Revenue,Adult Placement Services
Leeds City Council as Accountable Body,East - North East,1,Construction Services,7,Lebs,Supplies and Services,Other Hired And Contracted Services,27/09/2012,152,Revenue,Adult Placement Services
Leeds City Council as Accountable Body,East - North East,1,Construction Services,7,Lebs,Supplies and Services,Other Hired And Contracted Services,27/09/2012,266,Revenue,Adult Placement Services
Leeds City Council as Accountable Body,East - North East,1,Construction Services,7,Lebs,Supplies and Services,Other Hired And Contracted Services,27/09/2012,228,Revenue,Adult Placement Services
Leeds City Council as Accountable Body,East - North East,1,Construction Services,7,Lebs,Supplies and Services,Other Hired And Contracted Services,27/09/2012,171,Revenue,Adult Placement Services
Leeds City Council as Accountable Body,East - North East,1,Construction Services,7,Lebs,Supplies and Services,Other Hired And Contracted Services,22/08/2012,57,Revenue,Adult Placement Services
Leeds City Council as Accountable Body,East - North East,1,Construction Services,7,Lebs,Supplies and Services,Other Hired And Contracted Services,22/08/2012,190,Revenue,Adult Placement Services
Leeds City Council as Accountable Body,East - North East,1,Construction Services,7,Lebs,Supplies and Services,Other Hired And Contracted Services,22/08/2012,190,Revenue,Adult Placement Services
Leeds City Council as Accountable Body,East - North East,1,Construction Services,7,Lebs,Supplies and Services,Other Hired And Contracted Services,22/08/2012,418,Revenue,Adult Placement Services
Leeds City Council as Accountable Body,East - North East,1,Construction Services,7,Lebs,Supplies and Services,Other Hired And Contracted Services,22/08/2012,114,Revenue,Adult Placement Services
Leeds City Council as Accountable Body,East - North East,1,Construction Services,7,Lebs,Supplies and Services,Other Hired And Contracted Services,22/08/2012,342,Revenue,Adult Placement Services
Leeds City Council as Accountable Body,East - North East,1,Construction Services,7,Lebs,Supplies and Services,Other Hired And Contracted Services,22/08/2012,152,Revenue,Adult Placement Services
Leeds City Council as Accountable Body,East - North East,1,Construction Services,7,Lebs,Supplies and Services,Other Hired And Contracted Services,22/08/2012,114,Revenue,Adult Placement Services
Leeds City Council as Accountable Body,East - North East,1,Construction Services,7,Lebs,Supplies and Services,Other Hired And Contracted Services,22/08/2012,76,Revenue,Adult Placement Services
Leeds City Council as Accountable Body,East - North East,1,Construction Services,7,Lebs,Supplies and Services,Other Hired And Contracted Services,22/08/2012,133,Revenue,Adult Placement Services
Leeds City Council as Accountable Body,East - North East,1,Construction Services,7,Lebs,Supplies and Services,Other Hired And Contracted Services,22/08/2012,19,Revenue,Adult Placement Services
Leeds City Council as Accountable Body,East - North East,1,Construction Services,7,Lebs,Supplies and Services,Other Hired And Contracted Services,22/08/2012,418,Revenue,Adult Placement Services
Leeds City Council as Accountable Body,East - North East,1,Construction Services,7,Lebs,Supplies and Services,Other Hired And Contracted Services,22/08/2012,228,Revenue,Adult Placement Services
Leeds City Council as Accountable Body,East - North East,1,Construction Services,7,Lebs,Supplies and Services,Other Hired And Contracted Services,22/08/2012,133,Revenue,Adult Placement Services
Leeds City Council as Accountable Body,East - North East,1,Construction Services,7,Lebs,Supplies and Services,Other Hired And Contracted Services,22/08/2012,190,Revenue,Adult Placement Services
Leeds City Council as Accountable Body,East - North East,1,Construction Services,7,Lebs,Supplies and Services,Other Hired And Contracted Services,22/08/2012,266,Revenue,Adult Placement Services
Leeds City Council as Accountable Body,East - North East,1,Construction Services,7,Lebs,Supplies and Services,Other Hired And Contracted Services,22/08/2012,114,Revenue,Adult Placement Services
Leeds City Council as Accountable Body,East - North East,1,Construction Services,7,Lebs,Supplies and Services,Other Hired And Contracted Services,22/08/2012,304,Revenue,Adult Placement Services
Leeds City Council as Accountable Body,East - North East,1,Construction Services,7,Lebs,Supplies and Services,Other Hired And Contracted Services,22/08/2012,95,Revenue,Adult Placement Services
Leeds City Council as Accountable Body,East - North East,1,Construction Services,7,Lebs,Supplies and Services,Other Hired And Contracted Services,22/08/2012,437,Revenue,Adult Placement Services
Leeds City Council as Accountable Body,East - North East,1,Construction Services,7,Lebs,Supplies and Services,Other Hired And Contracted Services,22/08/2012,190,Revenue,Adult Placement Services
Leeds City Council as Accountable Body,East - North East,1,Construction Services,7,Lebs,Supplies and Services,Other Hired And Contracted Services,22/08/2012,190,Revenue,Adult Placement Services
Leeds City Council as Accountable Body,East - North East,1,Construction Services,7,Lebs,Supplies and Services,Other Hired And Contracted Services,22/08/2012,228,Revenue,Adult Placement Services
Leeds City Council as Accountable Body,East - North East,1,Construction Services,7,Lebs,Supplies and Services,Other Hired And Contracted Services,22/08/2012,152,Revenue,Adult Placement Services
Leeds City Council as Accountable Body,East - North East,1,Construction Services,7,Lebs,Supplies and Services,Other Hired And Contracted Services,05/04/2013,703,Revenue,Adult Placement Services
Leeds City Council as Accountable Body,East - North East,1,Construction Services,7,Lebs,Supplies and Services,Other Hired And Contracted Services,28/03/2013,712.5,Revenue,Adult Placement Services
Leeds City Council as Accountable Body,East - North East,1,Construction Services,7,Lebs,Supplies and Services,Other Hired And Contracted Services,28/03/2013,142.5,Revenue,Adult Placement Services
Leeds City Council as Accountable Body,East - North East,1,Construction Services,7,Lebs,Supplies and Services,Other Hired And Contracted Services,28/03/2013,921.5,Revenue,Adult Placement Services
Leeds City Council as Accountable Body,East - North East,1,Construction Services,7,Lebs,Supplies and Services,Other Hired And Contracted Services,28/03/2013,760,Revenue,Adult Placement Services
Leeds City Council as Accountable Body,East - North East,1,Construction Services,7,Lebs,Supplies and Services,Other Hired And Contracted Services,28/03/2013,608,Revenue,Adult Placement Services
Leeds City Council as Accountable Body,East - North East,1,Construction Services,7,Lebs,Supplies and Services,Other Hired And Contracted Services,28/03/2013,408.5,Revenue,Adult Placement Services
Leeds City Council as Accountable Body,East - North East,1,Construction Services,7,Lebs,Supplies and Services,Other Hired And Contracted Services,28/03/2013,560.5,Revenue,Adult Placement Services
Leeds City Council as Accountable Body,East - North East,1,Construction Services,7,Lebs,Supplies and Services,Other Hired And Contracted Services,28/03/2013,779,Revenue,Adult Placement Services
Leeds City Council as Accountable Body,East - North East,1,Construction Services,7,Lebs,Supplies and Services,Other Hired And Contracted Services,28/03/2013,760,Revenue,Adult Placement Services
Leeds City Council as Accountable Body,East - North East,1,Construction Services,7,Lebs,Supplies and Services,Other Hired And Contracted Services,17/12/2012,247,Revenue,Adult Placement Services
Leeds City Council as Accountable Body,East - North East,1,Construction Services,7,Lebs,Supplies and Services,Other Hired And Contracted Services,30/11/2012,532,Revenue,Adult Placement Services
Leeds City Council as Accountable Body,East - North East,1,Construction Services,7,Lebs,Supplies and Services,Other Hired And Contracted Services,30/11/2012,304,Revenue,Adult Placement Services
Leeds City Council as Accountable Body,East - North East,1,Construction Services,7,Lebs,Supplies and Services,Other Hired And Contracted Services,30/11/2012,209,Revenue,Adult Placement Services
Leeds City Council as Accountable Body,East - North East,1,Construction Services,7,Lebs,Supplies and Services,Other Hired And Contracted Services,30/11/2012,57,Revenue,Adult Placement Services
Leeds City Council as Accountable Body,East - North East,1,Construction Services,7,Lebs,Supplies and Services,Other Hired And Contracted Services,30/11/2012,266,Revenue,Adult Placement Services
Leeds City Council as Accountable Body,East - North East,1,Construction Services,7,Lebs,Supplies and Services,Other Hired And Contracted Services,30/11/2012,152,Revenue,Adult Placement Services
Leeds City Council as Accountable Body,East - North East,1,Construction Services,7,Lebs,Supplies and Services,Other Hired And Contracted Services,30/11/2012,152,Revenue,Adult Placement Services
Leeds City Council as Accountable Body,East - North East,1,Construction Services,7,Lebs,Supplies and Services,Other Hired And Contracted Services,30/11/2012,190,Revenue,Adult Placement Services
Leeds City Council as Accountable Body,East - North East,1,Construction Services,7,Lebs,Supplies and Services,Other Hired And Contracted Services,30/11/2012,190,Revenue,Adult Placement Services
Leeds City Council as Accountable Body,East - North East,1,Construction Services,7,Lebs,Supplies and Services,Other Hired And Contracted Services,30/11/2012,171,Revenue,Adult Placement Services
Leeds City Council as Accountable Body,East - North East,1,Construction Services,7,Lebs,Supplies and Services,Other Hired And Contracted Services,30/11/2012,114,Revenue,Adult Placement Services
Leeds City Council as Accountable Body,East - North East,1,Construction Services,7,Lebs,Supplies and Services,Other Hired And Contracted Services,30/11/2012,228,Revenue,Adult Placement Services
Leeds City Council as Accountable Body,East - North East,1,Construction Services,7,Lebs,Supplies and Services,Other Hired And Contracted Services,30/11/2012,228,Revenue,Adult Placement Services
Leeds City Council as Accountable Body,East - North East,1,Construction Services,7,Lebs,Supplies and Services,Other Hired And Contracted Services,30/11/2012,76,Revenue,Adult Placement Services
Leeds City Council as Accountable Body,East - North East,1,Construction Services,7,Lebs,Supplies and Services,Other Hired And Contracted Services,30/11/2012,57,Revenue,Adult Placement Services
Leeds City Council as Accountable Body,East - North East,1,Construction Services,7,Lebs,Supplies and Services,Other Hired And Contracted Services,30/11/2012,114,Revenue,Adult Placement Services
Leeds City Council as Accountable Body,East - North East,1,Construction Services,7,Lebs,Supplies and Services,Other Hired And Contracted Services,30/11/2012,114,Revenue,Adult Placement Services
Leeds City Council as Accountable Body,East - North East,1,Construction Services,7,Lebs,Supplies and Services,Other Hired And Contracted Services,30/11/2012,76,Revenue,Adult Placement Services
Leeds City Council as Accountable Body,East - North East,1,Construction Services,7,Lebs,Supplies and Services,Other Hired And Contracted Services,30/11/2012,76,Revenue,Adult Placement Services
Leeds City Council as Accountable Body,East - North East,1,Construction Services,7,Lebs,Supplies and Services,Other Hired And Contracted Services,30/11/2012,133,Revenue,Adult Placement Services
Leeds City Council as Accountable Body,East - North East,1,Construction Services,7,Lebs,Supplies and Services,Other Hired And Contracted Services,30/11/2012,152,Revenue,Adult Placement Services
Leeds City Council as Accountable Body,East - North East,1,Construction Services,7,Lebs,Supplies and Services,Other Hired And Contracted Services,30/11/2012,76,Revenue,Adult Placement Services
Leeds City Council as Accountable Body,East - North East,1,Construction Services,7,Lebs,Supplies and Services,Other Hired And Contracted Services,30/11/2012,38,Revenue,Adult Placement Services
Leeds City Council as Accountable Body,East - North East,1,Construction Services,7,Lebs,Supplies and Services,Other Hired And Contracted Services,30/11/2012,152,Revenue,Adult Placement Services
Leeds City Council as Accountable Body,East - North East,1,Construction Services,7,Lebs,Supplies and Services,Other Hired And Contracted Services,30/11/2012,114,Revenue,Adult Placement Services
Leeds City Council as Accountable Body,East - North East,1,Construction Services,7,Lebs,Supplies and Services,Other Hired And Contracted Services,30/11/2012,190,Revenue,Adult Placement Services
Leeds City Council as Accountable Body,East - North East,1,Construction Services,7,Lebs,Supplies and Services,Other Hired And Contracted Services,20/11/2012,608,Revenue,Adult Placement Services
Leeds City Council as Accountable Body,East - North East,1,Construction Services,7,Lebs,Supplies and Services,Other Hired And Contracted Services,20/11/2012,1406,Revenue,Adult Placement Services
Leeds City Council as Accountable Body,East - North East,1,Construction Services,7,Lebs,Supplies and Services,Other Hired And Contracted Services,20/11/2012,760,Revenue,Adult Placement Services
Leeds City Council as Accountable Body,East - North East,1,Construction Services,7,Lebs,Supplies and Services,Other Hired And Contracted Services,13/11/2012,152,Revenue,Adult Placement Services
Leeds City Council as Accountable Body,East - North East,1,Construction Services,7,Lebs,Supplies and Services,Other Hired And Contracted Services,13/11/2012,152,Revenue,Adult Placement Services
Leeds City Council as Accountable Body,East - North East,1,Construction Services,7,Lebs,Supplies and Services,Other Hired And Contracted Services,13/11/2012,152,Revenue,Adult Placement Services
Leeds City Council as Accountable Body,East - North East,1,Construction Services,7,Lebs,Supplies and Services,Other Hired And Contracted Services,13/11/2012,171,Revenue,Adult Placement Services
Leeds City Council as Accountable Body,East - North East,1,Construction Services,7,Lebs,Supplies and Services,Other Hired And Contracted Services,13/11/2012,380,Revenue,Adult Placement Services
Leeds City Council as Accountable Body,East - North East,1,Construction Services,7,Lebs,Supplies and Services,Other Hired And Contracted Services,13/11/2012,684,Revenue,Adult Placement Services
Leeds City Council as Accountable Body,East - North East,1,Construction Services,7,Lebs,Supplies and Services,Other Hired And Contracted Services,13/11/2012,152,Revenue,Adult Placement Services
Leeds City Council as Accountable Body,East - North East,1,Construction Services,7,Lebs,Supplies and Services,Other Hired And Contracted Services,13/11/2012,494,Revenue,Adult Placement Services
Leeds City Council as Accountable Body,East - North East,1,Construction Services,7,Lebs,Supplies and Services,Other Hired And Contracted Services,13/11/2012,627,Revenue,Adult Placement Services
Leeds City Council as Accountable Body,East - North East,1,Construction Services,7,Lebs,Supplies and Services,Other Hired And Contracted Services,02/11/2012,1102,Revenue,Adult Placement Services
Leeds City Council as Accountable Body,East - North East,1,Construction Services,7,Lebs,Supplies and Services,Other Hired And Contracted Services,02/11/2012,912,Revenue,Adult Placement Services
Leeds City Council as Accountable Body,East - North East,1,Construction Services,7,Lebs,Supplies and Services,Other Hired And Contracted Services,02/11/2012,437,Revenue,Adult Placement Services
Leeds City Council as Accountable Body,East - North East,1,Construction Services,7,Lebs,Supplies and Services,Other Hired And Contracted Services,02/11/2012,1026,Revenue,Adult Placement Services
Leeds City Council as Accountable Body,East - North East,1,Construction Services,7,Lebs,Supplies and Services,Other Hired And Contracted Services,02/11/2012,684,Revenue,Adult Placement Services
Leeds City Council as Accountable Body,East - North East,1,Construction Services,7,Lebs,Supplies and Services,Other Hired And Contracted Services,02/11/2012,570,Revenue,Adult Placement Services
Leeds City Council as Accountable Body,East - North East,1,Construction Services,7,Lebs,Supplies and Services,Other Hired And Contracted Services,02/11/2012,228,Revenue,Adult Placement Services
Leeds City Council as Accountable Body,East - North East,1,Construction Services,7,Lebs,Supplies and Services,Other Hired And Contracted Services,02/11/2012,893,Revenue,Adult Placement Services
Leeds City Council as Accountable Body,East - North East,1,Construction Services,7,Lebs,Supplies and Services,Other Hired And Contracted Services,02/11/2012,741,Revenue,Adult Placement Services
Leeds City Council as Accountable Body,East - North East,1,Construction Services,7,Lebs,Supplies and Services,Other Hired And Contracted Services,14/11/2012,912,Revenue,Adult Placement Services
Leeds City Council as Accountable Body,East - North East,1,Construction Services,7,Lebs,Supplies and Services,Other Hired And Contracted Services,14/11/2012,912,Revenue,Adult Placement Services
Leeds City Council as Accountable Body,East - North East,1,Construction Services,7,Lebs,Supplies and Services,Other Hired And Contracted Services,14/11/2012,608,Revenue,Adult Placement Services
Leeds City Council as Accountable Body,East - North East,1,Construction Services,7,Lebs,Supplies and Services,Other Hired And Contracted Services,14/11/2012,912,Revenue,Adult Placement Services
Leeds City Council as Accountable Body,East - North East,1,Construction Services,7,Lebs,Supplies and Services,Other Hired And Contracted Services,14/11/2012,304,Revenue,Adult Placement Services
Leeds City Council as Accountable Body,East - North East,1,Construction Services,7,Lebs,Supplies and Services,Other Hired And Contracted Services,14/11/2012,456,Revenue,Adult Placement Services
Leeds City Council as Accountable Body,East - North East,1,Construction Services,7,Lebs,Supplies and Services,Other Hired And Contracted Services,06/11/2012,760,Revenue,Adult Placement Services
Leeds City Council as Accountable Body,East - North East,1,Construction Services,7,Lebs,Supplies and Services,Other Hired And Contracted Services,06/11/2012,456,Revenue,Adult Placement Services
Leeds City Council as Accountable Body,East - North East,1,Construction Services,7,Lebs,Supplies and Services,Other Hired And Contracted Services,06/11/2012,608,Revenue,Adult Placement Services
Leeds City Council as Accountable Body,East - North East,1,Construction Services,7,Lebs,Supplies and Services,Other Hired And Contracted Services,06/11/2012,152,Revenue,Adult Placement Services
Leeds City Council as Accountable Body,East - North East,1,Construction Services,7,Lebs,Supplies and Services,Other Hired And Contracted Services,06/11/2012,760,Revenue,Adult Placement Services
Leeds City Council as Accountable Body,East - North East,1,Construction Services,7,Lebs,Supplies and Services,Other Hired And Contracted Services,06/11/2012,988,Revenue,Adult Placement Services
Leeds City Council as Accountable Body,East - North East,1,Construction Services,7,Lebs,Supplies and Services,Other Hired And Contracted Services,06/11/2012,1007,Revenue,Adult Placement Services
Leeds City Council as Accountable Body,East - North East,1,Construction Services,7,Lebs,Supplies and Services,Other Hired And Contracted Services,24/10/2012,798,Revenue,Adult Placement Services
Leeds City Council as Accountable Body,East - North East,1,Construction Services,7,Lebs,Supplies and Services,Other Hired And Contracted Services,24/10/2012,456,Revenue,Adult Placement Services
Leeds City Council as Accountable Body,East - North East,1,Construction Services,7,Lebs,Supplies and Services,Other Hired And Contracted Services,27/09/2012,-741,Revenue,Adult Placement Services
Leeds City Council as Accountable Body,East - North East,1,Construction Services,7,Lebs,Supplies and Services,Other Hired And Contracted Services,25/09/2012,95,Revenue,Adult Placement Services
Leeds City Council as Accountable Body,East - North East,1,Construction Services,7,Lebs,Supplies and Services,Other Hired And Contracted Services,25/09/2012,228,Revenue,Adult Placement Services
Leeds City Council as Accountable Body,East - North East,1,Construction Services,7,Lebs,Supplies and Services,Other Hired And Contracted Services,25/09/2012,399,Revenue,Adult Placement Services
Leeds City Council as Accountable Body,East - North East,1,Construction Services,7,Lebs,Supplies and Services,Other Hired And Contracted Services,25/09/2012,1216,Revenue,Adult Placement Services
Leeds City Council as Accountable Body,East - North East,1,Construction Services,7,Lebs,Supplies and Services,Other Hired And Contracted Services,17/09/2012,209,Revenue,Adult Placement Services
Leeds City Council as Accountable Body,East - North East,1,Construction Services,7,Lebs,Supplies and Services,Other Hired And Contracted Services,23/08/2012,38,Revenue,Adult Placement Services
Leeds City Council as Accountable Body,East - North East,1,Construction Services,7,Lebs,Supplies and Services,Other Hired And Contracted Services,23/08/2012,133,Revenue,Adult Placement Services
Leeds City Council as Accountable Body,East - North East,1,Construction Services,7,Lebs,Supplies and Services,Other Hired And Contracted Services,22/08/2012,285,Revenue,Adult Placement Services
Leeds City Council as Accountable Body,East - North East,1,Construction Services,7,Lebs,Supplies and Services,Other Hired And Contracted Services,22/08/2012,1007,Revenue,Adult Placement Services
Leeds City Council as Accountable Body,East - North East,1,Construction Services,7,Lebs,Supplies and Services,Other Hired And Contracted Services,22/08/2012,1083,Revenue,Adult Placement Services
Leeds City Council as Accountable Body,East - North East,1,Construction Services,7,Lebs,Supplies and Services,Other Hired And Contracted Services,22/08/2012,1159,Revenue,Adult Placement Services
Leeds City Council as Accountable Body,East - North East,1,Construction Services,7,Lebs,Supplies and Services,Other Hired And Contracted Services,22/08/2012,76,Revenue,Adult Placement Services
Leeds City Council as Accountable Body,East - North East,1,Construction Services,7,Lebs,Supplies and Services,Other Hired And Contracted Services,22/08/2012,418,Revenue,Adult Placement Services
Leeds City Council as Accountable Body,East - North East,1,Construction Services,7,Lebs,Supplies and Services,Other Hired And Contracted Services,22/08/2012,418,Revenue,Adult Placement Services
Leeds City Council as Accountable Body,East - North East,1,Construction Services,7,Lebs,Supplies and Services,Other Hired And Contracted Services,17/08/2012,190,Revenue,Adult Placement Services
Leeds City Council as Accountable Body,East - North East,1,Construction Services,7,Lebs,Supplies and Services,Other Hired And Contracted Services,17/08/2012,38,Revenue,Adult Placement Services
Leeds City Council as Accountable Body,East - North East,1,Construction Services,7,Lebs,Supplies and Services,Other Hired And Contracted Services,17/08/2012,361,Revenue,Adult Placement Services
Leeds City Council as Accountable Body,East - North East,1,Construction Services,7,Lebs,Supplies and Services,Other Hired And Contracted Services,17/08/2012,-361,Revenue,Adult Placement Services
Leeds City Council as Accountable Body,East - North East,1,Construction Services,7,Lebs,Supplies and Services,Other Hired And Contracted Services,13/08/2012,2023.5,Revenue,Adult Placement Services
Leeds City Council as Accountable Body,East - North East,1,Construction Services,7,Lebs,Supplies and Services,Other Hired And Contracted Services,13/08/2012,1140,Revenue,Adult Placement Services
Leeds City Council as Accountable Body,East - North East,1,Construction Services,7,Lebs,Supplies and Services,Other Hired And Contracted Services,10/08/2012,418,Revenue,Adult Placement Services
Leeds City Council as Accountable Body,East - North East,1,Construction Services,7,Lebs,Supplies and Services,Other Hired And Contracted Services,10/08/2012,114,Revenue,Adult Placement Services
Leeds City Council as Accountable Body,East - North East,1,Construction Services,7,Lebs,Supplies and Services,Other Hired And Contracted Services,10/08/2012,190,Revenue,Adult Placement Services
Leeds City Council as Accountable Body,East - North East,1,Construction Services,7,Lebs,Supplies and Services,Other Hired And Contracted Services,10/08/2012,95,Revenue,Adult Placement Services
Leeds City Council as Accountable Body,East - North East,1,Construction Services,7,Lebs,Supplies and Services,Other Hired And Contracted Services,01/08/2012,85.5,Revenue,Adult Placement Services
Leeds City Council as Accountable Body,East - North East,1,Construction Services,7,Lebs,Supplies and Services,Other Hired And Contracted Services,01/08/2012,418,Revenue,Adult Placement Services
Leeds City Council as Accountable Body,East - North East,1,Construction Services,7,Lebs,Supplies and Services,Other Hired And Contracted Services,01/08/2012,57,Revenue,Adult Placement Services
Leeds City Council as Accountable Body,East - North East,1,Construction Services,7,Lebs,Supplies and Services,Other Hired And Contracted Services,01/08/2012,342,Revenue,Adult Placement Services
Leeds City Council as Accountable Body,East - North East,1,Construction Services,7,Lebs,Supplies and Services,Other Hired And Contracted Services,01/08/2012,323,Revenue,Adult Placement Services
Leeds City Council as Accountable Body,East - North East,1,Construction Services,7,Lebs,Supplies and Services,Other Hired And Contracted Services,01/08/2012,323,Revenue,Adult Placement Services
Leeds City Council as Accountable Body,East - North East,1,Construction Services,7,Lebs,Supplies and Services,Other Hired And Contracted Services,01/08/2012,532,Revenue,Adult Placement Services
Leeds City Council as Accountable Body,East - North East,1,Construction Services,7,Lebs,Supplies and Services,Other Hired And Contracted Services,01/08/2012,703,Revenue,Adult Placement Services
Leeds City Council as Accountable Body,East - North East,1,Construction Services,7,Lebs,Supplies and Services,Other Hired And Contracted Services,01/08/2012,541.5,Revenue,Adult Placement Services
Leeds City Council as Accountable Body,East - North East,1,Construction Services,7,Lebs,Supplies and Services,Other Hired And Contracted Services,01/08/2012,342,Revenue,Adult Placement Services
Leeds City Council as Accountable Body,East - North East,1,Construction Services,7,Lebs,Supplies and Services,Other Hired And Contracted Services,27/07/2012,47.5,Revenue,Adult Placement Services
Leeds City Council as Accountable Body,East - North East,1,Construction Services,7,Lebs,Supplies and Services,Other Hired And Contracted Services,27/07/2012,47.5,Revenue,Adult Placement Services
Leeds City Council as Accountable Body,East - North East,1,Construction Services,7,Lebs,Supplies and Services,Other Hired And Contracted Services,26/07/2012,361,Revenue,Adult Placement Services
Leeds City Council as Accountable Body,East - North East,1,Construction Services,7,Lebs,Supplies and Services,Other Hired And Contracted Services,09/07/2012,-817,Revenue,Adult Placement Services
Leeds City Council as Accountable Body,East - North East,1,Construction Services,7,Lebs,Supplies and Services,Other Hired And Contracted Services,09/07/2012,95,Revenue,Adult Placement Services
Leeds City Council as Accountable Body,East - North East,1,Construction Services,7,Lebs,Supplies and Services,Other Hired And Contracted Services,09/07/2012,152,Revenue,Adult Placement Services
Leeds City Council as Accountable Body,East - North East,1,Construction Services,7,Lebs,Supplies and Services,Other Hired And Contracted Services,09/07/2012,76,Revenue,Adult Placement Services
Leeds City Council as Accountable Body,East - North East,1,Construction Services,7,Lebs,Supplies and Services,Other Hired And Contracted Services,05/07/2012,57,Revenue,Adult Placement Services
Leeds City Council as Accountable Body,East - North East,1,Construction Services,7,Lebs,Supplies and Services,Other Hired And Contracted Services,05/07/2012,152,Revenue,Adult Placement Services
Leeds City Council as Accountable Body,East - North East,1,Construction Services,7,Lebs,Supplies and Services,Other Hired And Contracted Services,03/07/2012,95,Revenue,Adult Placement Services
Leeds City Council as Accountable Body,East - North East,1,Construction Services,7,Lebs,Supplies and Services,Other Hired And Contracted Services,03/07/2012,285,Revenue,Adult Placement Services
Leeds City Council as Accountable Body,East - North East,1,Construction Services,7,Lebs,Supplies and Services,Other Hired And Contracted Services,03/07/2012,380,Revenue,Adult Placement Services
Leeds City Council as Accountable Body,East - North East,1,Construction Services,7,Lebs,Supplies and Services,Other Hired And Contracted Services,03/07/2012,703,Revenue,Adult Placement Services
Leeds City Council as Accountable Body,East - North East,1,Construction Services,7,Lebs,Supplies and Services,Other Hired And Contracted Services,03/07/2012,437,Revenue,Adult Placement Services
Leeds City Council as Accountable Body,East - North East,1,Construction Services,7,Lebs,Supplies and Services,Other Hired And Contracted Services,03/07/2012,380,Revenue,Adult Placement Services
Leeds City Council as Accountable Body,East - North East,1,Construction Services,7,Lebs,Supplies and Services,Other Hired And Contracted Services,03/07/2012,760,Revenue,Adult Placement Services
Leeds City Council as Accountable Body,East - North East,1,Construction Services,7,Lebs,Supplies and Services,Other Hired And Contracted Services,03/07/2012,608,Revenue,Adult Placement Services
Leeds City Council as Accountable Body,East - North East,1,Construction Services,7,Lebs,Supplies and Services,Other Hired And Contracted Services,03/07/2012,361,Revenue,Adult Placement Services
Leeds City Council as Accountable Body,East - North East,1,Construction Services,7,Lebs,Supplies and Services,Other Hired And Contracted Services,03/07/2012,703,Revenue,Adult Placement Services
Leeds City Council as Accountable Body,East - North East,1,Construction Services,7,Lebs,Supplies and Services,Other Hired And Contracted Services,03/07/2012,513,Revenue,Adult Placement Services
Leeds City Council as Accountable Body,East - North East,1,Construction Services,7,Lebs,Supplies and Services,Other Hired And Contracted Services,03/07/2012,380,Revenue,Adult Placement Services
Leeds City Council as Accountable Body,East - North East,1,Construction Services,7,Lebs,Supplies and Services,Other Hired And Contracted Services,03/07/2012,722,Revenue,Adult Placement Services
Leeds City Council as Accountable Body,East - North East,1,Construction Services,7,Lebs,Supplies and Services,Other Hired And Contracted Services,03/07/2012,437,Revenue,Adult Placement Services
Leeds City Council as Accountable Body,East - North East,1,Construction Services,7,Lebs,Supplies and Services,Other Hired And Contracted Services,03/07/2012,57,Revenue,Adult Placement Services
Leeds City Council as Accountable Body,East - North East,1,Construction Services,7,Lebs,Supplies and Services,Other Hired And Contracted Services,03/07/2012,95,Revenue,Adult Placement Services
Leeds City Council as Accountable Body,East - North East,1,Construction Services,7,Lebs,Supplies and Services,Other Hired And Contracted Services,03/07/2012,190,Revenue,Adult Placement Services
Leeds City Council as Accountable Body,East - North East,1,Construction Services,7,Lebs,Supplies and Services,Other Hired And Contracted Services,03/07/2012,19,Revenue,Adult Placement Services
Leeds City Council as Accountable Body,East - North East,1,Construction Services,7,Lebs,Supplies and Services,Other Hired And Contracted Services,03/07/2012,38,Revenue,Adult Placement Services
Leeds City Council as Accountable Body,East - North East,1,Construction Services,7,Lebs,Supplies and Services,Other Hired And Contracted Services,03/07/2012,133,Revenue,Adult Placement Services
Leeds City Council as Accountable Body,East - North East,1,Construction Services,7,Lebs,Supplies and Services,Other Hired And Contracted Services,03/07/2012,1254,Revenue,Adult Placement Services
Leeds City Council as Accountable Body,East - North East,1,Construction Services,7,Lebs,Supplies and Services,Other Hired And Contracted Services,03/07/2012,760,Revenue,Adult Placement Services
Leeds City Council as Accountable Body,East - North East,1,Construction Services,7,Lebs,Supplies and Services,Other Hired And Contracted Services,03/07/2012,950,Revenue,Adult Placement Services
Leeds City Council as Accountable Body,East - North East,1,Construction Services,7,Lebs,Supplies and Services,Other Hired And Contracted Services,03/07/2012,19,Revenue,Adult Placement Services
Leeds City Council as Accountable Body,East - North East,1,Construction Services,7,Lebs,Supplies and Services,Other Hired And Contracted Services,03/07/2012,152,Revenue,Adult Placement Services
Leeds City Council as Accountable Body,East - North East,1,Construction Services,7,Lebs,Supplies and Services,Other Hired And Contracted Services,03/07/2012,133,Revenue,Adult Placement Services
Leeds City Council as Accountable Body,East - North East,1,Construction Services,7,Lebs,Supplies and Services,Other Hired And Contracted Services,03/07/2012,342,Revenue,Adult Placement Services
Leeds City Council as Accountable Body,East - North East,1,Construction Services,7,Lebs,Supplies and Services,Other Hired And Contracted Services,03/07/2012,1140,Revenue,Adult Placement Services
Leeds City Council as Accountable Body,East - North East,1,Construction Services,7,Lebs,Supplies and Services,Other Hired And Contracted Services,03/07/2012,-1140,Revenue,Adult Placement Services
Leeds City Council as Accountable Body,East - North East,1,Construction Services,7,Lebs,Supplies and Services,Other Hired And Contracted Services,03/07/2012,-342,Revenue,Adult Placement Services
Leeds City Council as Accountable Body,East - North East,1,Construction Services,7,Lebs,Supplies and Services,Other Hired And Contracted Services,25/06/2012,380,Revenue,Adult Placement Services
Leeds City Council as Accountable Body,East - North East,1,Construction Services,7,Lebs,Supplies and Services,Other Hired And Contracted Services,25/06/2012,437,Revenue,Adult Placement Services
Leeds City Council as Accountable Body,East - North East,1,Construction Services,7,Lebs,Supplies and Services,Other Hired And Contracted Services,24/05/2012,266,Revenue,Adult Placement Services
Leeds City Council as Accountable Body,East - North East,1,Construction Services,7,Lebs,Supplies and Services,Other Hired And Contracted Services,24/05/2012,494,Revenue,Adult Placement Services
Leeds City Council as Accountable Body,East - North East,1,Construction Services,7,Lebs,Supplies and Services,Other Hired And Contracted Services,24/05/2012,95,Revenue,Adult Placement Services
Leeds City Council as Accountable Body,East - North East,1,Construction Services,7,Lebs,Supplies and Services,Other Hired And Contracted Services,17/05/2012,114,Revenue,Adult Placement Services
Leeds City Council as Accountable Body,East - North East,1,Construction Services,7,Lebs,Supplies and Services,Other Hired And Contracted Services,17/05/2012,190,Revenue,Adult Placement Services
Leeds City Council as Accountable Body,East - North East,1,Construction Services,7,Lebs,Supplies and Services,Other Hired And Contracted Services,17/05/2012,38,Revenue,Adult Placement Services
Leeds City Council as Accountable Body,East - North East,1,Construction Services,7,Lebs,Supplies and Services,Other Hired And Contracted Services,17/05/2012,114,Revenue,Adult Placement Services
Leeds City Council as Accountable Body,East - North East,1,Construction Services,7,Lebs,Supplies and Services,Other Hired And Contracted Services,17/05/2012,152,Revenue,Adult Placement Services
Leeds City Council as Accountable Body,East - North East,1,Construction Services,7,Lebs,Supplies and Services,Other Hired And Contracted Services,17/05/2012,85.5,Revenue,Adult Placement Services
Leeds City Council as Accountable Body,East - North East,1,Construction Services,7,Lebs,Supplies and Services,Other Hired And Contracted Services,17/05/2012,152,Revenue,Adult Placement Services
Leeds City Council as Accountable Body,East - North East,1,Construction Services,7,Lebs,Supplies and Services,Other Hired And Contracted Services,17/05/2012,342,Revenue,Adult Placement Services
Leeds City Council as Accountable Body,East - North East,1,Construction Services,7,Lebs,Supplies and Services,Other Hired And Contracted Services,17/05/2012,38,Revenue,Adult Placement Services
Leeds City Council as Accountable Body,East - North East,1,Construction Services,7,Lebs,Supplies and Services,Other Hired And Contracted Services,17/05/2012,57,Revenue,Adult Placement Services
Leeds City Council as Accountable Body,East - North East,1,Construction Services,7,Lebs,Supplies and Services,Other Hired And Contracted Services,17/05/2012,38,Revenue,Adult Placement Services
Leeds City Council as Accountable Body,East - North East,1,Construction Services,7,Lebs,Supplies and Services,Other Hired And Contracted Services,17/05/2012,19,Revenue,Adult Placement Services
Leeds City Council as Accountable Body,East - North East,1,Construction Services,7,Lebs,Supplies and Services,Other Hired And Contracted Services,03/05/2012,57,Revenue,Adult Placement Services
Leeds City Council as Accountable Body,East - North East,1,Construction Services,7,Lebs,Supplies and Services,Other Hired And Contracted Services,03/05/2012,114,Revenue,Adult Placement Services
Leeds City Council as Accountable Body,East - North East,1,Construction Services,7,Lebs,Supplies and Services,Other Hired And Contracted Services,27/04/2012,114,Revenue,Adult Placement Services
Leeds City Council as Accountable Body,East - North East,1,Construction Services,7,Lebs,Supplies and Services,Other Hired And Contracted Services,27/04/2012,114,Revenue,Adult Placement Services
Leeds City Council as Accountable Body,East - North East,1,Construction Services,7,Lebs,Supplies and Services,Other Hired And Contracted Services,27/04/2012,57,Revenue,Adult Placement Services
Leeds City Council as Accountable Body,East - North East,1,Construction Services,7,Lebs,Supplies and Services,Other Hired And Contracted Services,27/04/2012,817,Revenue,Adult Placement Services
Leeds City Council as Accountable Body,East - North East,1,Construction Services,7,Lebs,Supplies and Services,Other Hired And Contracted Services,27/04/2012,1121,Revenue,Adult Placement Services
Leeds City Council as Accountable Body,East - North East,1,Construction Services,7,Lebs,Supplies and Services,Other Hired And Contracted Services,27/04/2012,76,Revenue,Adult Placement Services
Leeds City Council as Accountable Body,East - North East,1,Construction Services,7,Lebs,Supplies and Services,Other Hired And Contracted Services,27/04/2012,304,Revenue,Adult Placement Services
Leeds City Council as Accountable Body,East - North East,1,Construction Services,7,Lebs,Supplies and Services,Other Hired And Contracted Services,27/04/2012,361,Revenue,Adult Placement Services
Leeds City Council as Accountable Body,East - North East,1,Construction Services,7,Lebs,Supplies and Services,Other Hired And Contracted Services,27/04/2012,114,Revenue,Adult Placement Services
Leeds City Council as Accountable Body,East - North East,1,Construction Services,7,Lebs,Supplies and Services,Other Hired And Contracted Services,27/04/2012,114,Revenue,Adult Placement Services
Leeds City Council as Accountable Body,East - North East,1,Construction Services,7,Lebs,Supplies and Services,Other Hired And Contracted Services,22/08/2012,836,Revenue,Adult Placement Services
Leeds City Council as Accountable Body,East - North East,1,Construction Services,7,Lebs,Supplies and Services,Other Hired And Contracted Services,27/02/2013,57,Revenue,Adult Placement Services
Leeds City Council as Accountable Body,East - North East,1,Construction Services,7,Lebs,Supplies and Services,Other Hired And Contracted Services,27/02/2013,38,Revenue,Adult Placement Services
Leeds City Council as Accountable Body,East - North East,1,Construction Services,7,Lebs,Supplies and Services,Other Hired And Contracted Services,27/02/2013,57,Revenue,Adult Placement Services
Leeds City Council as Accountable Body,East - North East,1,Construction Services,7,Lebs,Supplies and Services,Other Hired And Contracted Services,27/02/2013,38,Revenue,Adult Placement Services
Leeds City Council as Accountable Body,East - North East,1,Construction Services,7,Lebs,Supplies and Services,Other Hired And Contracted Services,27/02/2013,19,Revenue,Adult Placement Services
Leeds City Council as Accountable Body,East - North East,1,Construction Services,7,Lebs,Supplies and Services,Other Hired And Contracted Services,27/02/2013,19,Revenue,Adult Placement Services
Leeds City Council as Accountable Body,East - North East,1,Construction Services,7,Lebs,Supplies and Services,Other Hired And Contracted Services,27/02/2013,47.5,Revenue,Adult Placement Services
Leeds City Council as Accountable Body,East - North East,1,Construction Services,7,Lebs,Supplies and Services,Other Hired And Contracted Services,27/02/2013,28.5,Revenue,Adult Placement Services
Leeds City Council as Accountable Body,East - North East,1,Construction Services,7,Lebs,Supplies and Services,Other Hired And Contracted Services,27/02/2013,38,Revenue,Adult Placement Services
Leeds City Council as Accountable Body,East - North East,1,Construction Services,7,Lebs,Supplies and Services,Other Hired And Contracted Services,27/02/2013,28.5,Revenue,Adult Placement Services
Leeds City Council as Accountable Body,East - North East,1,Construction Services,7,Lebs,Supplies and Services,Other Hired And Contracted Services,27/02/2013,47.5,Revenue,Adult Placement Services
Leeds City Council as Accountable Body,East - North East,1,Construction Services,7,Lebs,Supplies and Services,Other Hired And Contracted Services,27/02/2013,38,Revenue,Adult Placement Services
Leeds City Council as Accountable Body,East - North East,1,Construction Services,7,Lebs,Supplies and Services,Other Hired And Contracted Services,27/02/2013,28.5,Revenue,Adult Placement Services
Leeds City Council as Accountable Body,East - North East,1,Construction Services,7,Lebs,Supplies and Services,Other Hired And Contracted Services,27/02/2013,14.25,Revenue,Adult Placement Services
Leeds City Council as Accountable Body,East - North East,1,Construction Services,7,Lebs,Supplies and Services,Other Hired And Contracted Services,27/02/2013,19,Revenue,Adult Placement Services
Leeds City Council as Accountable Body,East - North East,1,Construction Services,7,Lebs,Supplies and Services,Other Hired And Contracted Services,27/02/2013,19,Revenue,Adult Placement Services
Leeds City Council as Accountable Body,East - North East,1,Construction Services,7,Lebs,Supplies and Services,Other Hired And Contracted Services,27/02/2013,33.25,Revenue,Adult Placement Services
Leeds City Council as Accountable Body,East - North East,1,Construction Services,7,Lebs,Supplies and Services,Other Hired And Contracted Services,27/02/2013,28.5,Revenue,Adult Placement Services
Leeds City Council as Accountable Body,East - North East,1,Construction Services,7,Lebs,Supplies and Services,Other Hired And Contracted Services,27/02/2013,19,Revenue,Adult Placement Services
Leeds City Council as Accountable Body,East - North East,1,Construction Services,7,Lebs,Supplies and Services,Other Hired And Contracted Services,27/02/2013,14.25,Revenue,Adult Placement Services
Leeds City Council as Accountable Body,East - North East,1,Construction Services,7,Lebs,Supplies and Services,Other Hired And Contracted Services,27/02/2013,14.25,Revenue,Adult Placement Services
Leeds City Council as Accountable Body,East - North East,1,Construction Services,7,Lebs,Supplies and Services,Other Hired And Contracted Services,27/02/2013,9.5,Revenue,Adult Placement Services
Leeds City Council as Accountable Body,East - North East,1,Construction Services,7,Lebs,Supplies and Services,Other Hired And Contracted Services,27/02/2013,19,Revenue,Adult Placement Services
Leeds City Council as Accountable Body,East - North East,1,Construction Services,7,Lebs,Supplies and Services,Other Hired And Contracted Services,27/02/2013,28.5,Revenue,Adult Placement Services
Leeds City Council as Accountable Body,East - North East,1,Construction Services,7,Lebs,Supplies and Services,Other Hired And Contracted Services,27/02/2013,47.5,Revenue,Adult Placement Services
Leeds City Council as Accountable Body,East - North East,1,Construction Services,7,Lebs,Supplies and Services,Other Hired And Contracted Services,27/02/2013,57,Revenue,Adult Placement Services
Leeds City Council as Accountable Body,East - North East,1,Construction Services,7,Lebs,Supplies and Services,Other Hired And Contracted Services,27/02/2013,38,Revenue,Adult Placement Services
Leeds City Council as Accountable Body,East - North East,1,Construction Services,7,Lebs,Supplies and Services,Other Hired And Contracted Services,27/02/2013,28.5,Revenue,Adult Placement Services
Leeds City Council as Accountable Body,East - North East,1,Construction Services,7,Lebs,Supplies and Services,Other Hired And Contracted Services,27/02/2013,28.5,Revenue,Adult Placement Services
Leeds City Council as Accountable Body,East - North East,1,Construction Services,7,Lebs,Supplies and Services,Other Hired And Contracted Services,27/02/2013,19,Revenue,Adult Placement Services
Leeds City Council as Accountable Body,East - North East,1,Construction Services,7,Lebs,Supplies and Services,Other Hired And Contracted Services,27/02/2013,14.25,Revenue,Adult Placement Services
Leeds City Council as Accountable Body,East - North East,1,Construction Services,7,Lebs,Supplies and Services,Other Hired And Contracted Services,27/02/2013,23.75,Revenue,Adult Placement Services
Leeds City Council as Accountable Body,East - North East,1,Construction Services,7,Lebs,Supplies and Services,Other Hired And Contracted Services,27/02/2013,28.5,Revenue,Adult Placement Services
Leeds City Council as Accountable Body,East - North East,1,Construction Services,7,Lebs,Supplies and Services,Other Hired And Contracted Services,27/02/2013,28.5,Revenue,Adult Placement Services
Leeds City Council as Accountable Body,East - North East,1,Construction Services,7,Lebs,Supplies and Services,Other Hired And Contracted Services,27/02/2013,28.5,Revenue,Adult Placement Services
Leeds City Council as Accountable Body,East - North East,1,Construction Services,7,Lebs,Supplies and Services,Other Hired And Contracted Services,27/02/2013,19,Revenue,Adult Placement Services
Leeds City Council as Accountable Body,East - North East,1,Construction Services,7,Lebs,Supplies and Services,Other Hired And Contracted Services,27/02/2013,66.5,Revenue,Adult Placement Services
Leeds City Council as Accountable Body,East - North East,1,Construction Services,7,Lebs,Supplies and Services,Other Hired And Contracted Services,27/02/2013,28.5,Revenue,Adult Placement Services
Leeds City Council as Accountable Body,East - North East,1,Construction Services,7,Lebs,Supplies and Services,Other Hired And Contracted Services,27/02/2013,28.5,Revenue,Adult Placement Services
Leeds City Council as Accountable Body,East - North East,1,Construction Services,7,Lebs,Supplies and Services,Other Hired And Contracted Services,27/02/2013,19,Revenue,Adult Placement Services
Leeds City Council as Accountable Body,East - North East,1,Construction Services,7,Lebs,Supplies and Services,Other Hired And Contracted Services,27/02/2013,19,Revenue,Adult Placement Services
Leeds City Council as Accountable Body,East - North East,1,Construction Services,7,Lebs,Supplies and Services,Other Hired And Contracted Services,27/02/2013,19,Revenue,Adult Placement Services
Leeds City Council as Accountable Body,East - North East,1,Construction Services,7,Lebs,Supplies and Services,Other Hired And Contracted Services,27/02/2013,28.5,Revenue,Adult Placement Services
Leeds City Council as Accountable Body,East - North East,1,Construction Services,7,Lebs,Supplies and Services,Other Hired And Contracted Services,27/02/2013,19,Revenue,Adult Placement Services
Leeds City Council as Accountable Body,East - North East,1,Construction Services,7,Lebs,Supplies and Services,Other Hired And Contracted Services,27/02/2013,57,Revenue,Adult Placement Services
Leeds City Council as Accountable Body,East - North East,1,Construction Services,7,Lebs,Supplies and Services,Other Hired And Contracted Services,27/02/2013,19,Revenue,Adult Placement Services
Leeds City Council as Accountable Body,East - North East,1,Construction Services,7,Lebs,Supplies and Services,Other Hired And Contracted Services,27/02/2013,28.5,Revenue,Adult Placement Services
Leeds City Council as Accountable Body,East - North East,1,Construction Services,7,Lebs,Supplies and Services,Other Hired And Contracted Services,27/02/2013,9.5,Revenue,Adult Placement Services
Leeds City Council as Accountable Body,East - North East,1,Construction Services,7,Lebs,Supplies and Services,Other Hired And Contracted Services,27/02/2013,28.5,Revenue,Adult Placement Services
Leeds City Council as Accountable Body,East - North East,1,Construction Services,7,Lebs,Supplies and Services,Other Hired And Contracted Services,27/02/2013,9.5,Revenue,Adult Placement Services
Leeds City Council as Accountable Body,East - North East,1,Construction Services,7,Lebs,Supplies and Services,Other Hired And Contracted Services,27/02/2013,9.5,Revenue,Adult Placement Services
Leeds City Council as Accountable Body,East - North East,1,Construction Services,7,Lebs,Supplies and Services,Other Hired And Contracted Services,27/02/2013,9.5,Revenue,Adult Placement Services
Leeds City Council as Accountable Body,East - North East,1,Construction Services,7,Lebs,Supplies and Services,Other Hired And Contracted Services,27/02/2013,9.5,Revenue,Adult Placement Services
Leeds City Council as Accountable Body,East - North East,1,Construction Services,7,Lebs,Supplies and Services,Other Hired And Contracted Services,27/02/2013,19,Revenue,Adult Placement Services
Leeds City Council as Accountable Body,East - North East,1,Construction Services,7,Lebs,Supplies and Services,Other Hired And Contracted Services,27/02/2013,23.75,Revenue,Adult Placement Services
Leeds City Council as Accountable Body,East - North East,1,Construction Services,7,Lebs,Supplies and Services,Other Hired And Contracted Services,27/02/2013,33.25,Revenue,Adult Placement Services
Leeds City Council as Accountable Body,East - North East,1,Construction Services,7,Lebs,Supplies and Services,Other Hired And Contracted Services,27/02/2013,38,Revenue,Adult Placement Services
Leeds City Council as Accountable Body,East - North East,1,Construction Services,7,Lebs,Supplies and Services,Other Hired And Contracted Services,27/02/2013,19,Revenue,Adult Placement Services
Leeds City Council as Accountable Body,East - North East,1,Construction Services,7,Lebs,Supplies and Services,Other Hired And Contracted Services,27/02/2013,28.5,Revenue,Adult Placement Services
Leeds City Council as Accountable Body,East - North East,1,Construction Services,7,Lebs,Supplies and Services,Other Hired And Contracted Services,27/02/2013,66.5,Revenue,Adult Placement Services
Leeds City Council as Accountable Body,East - North East,1,Construction Services,7,Lebs,Supplies and Services,Other Hired And Contracted Services,27/02/2013,57,Revenue,Adult Placement Services
Leeds City Council as Accountable Body,East - North East,1,Construction Services,7,Lebs,Supplies and Services,Other Hired And Contracted Services,27/02/2013,19,Revenue,Adult Placement Services
Leeds City Council as Accountable Body,East - North East,1,Construction Services,7,Lebs,Supplies and Services,Other Hired And Contracted Services,27/02/2013,14.25,Revenue,Adult Placement Services
Leeds City Council as Accountable Body,East - North East,1,Construction Services,7,Lebs,Supplies and Services,Other Hired And Contracted Services,27/02/2013,14.25,Revenue,Adult Placement Services
Leeds City Council as Accountable Body,East - North East,1,Construction Services,7,Lebs,Supplies and Services,Other Hired And Contracted Services,27/02/2013,28.5,Revenue,Adult Placement Services
Leeds City Council as Accountable Body,East - North East,1,Construction Services,7,Lebs,Supplies and Services,Other Hired And Contracted Services,27/02/2013,28.5,Revenue,Adult Placement Services
Leeds City Council as Accountable Body,East - North East,1,Construction Services,7,Lebs,Supplies and Services,Other Hired And Contracted Services,27/02/2013,19,Revenue,Adult Placement Services
Leeds City Council as Accountable Body,East - North East,1,Construction Services,7,Lebs,Supplies and Services,Other Hired And Contracted Services,27/02/2013,23.75,Revenue,Adult Placement Services
Leeds City Council as Accountable Body,East - North East,1,Construction Services,7,Lebs,Supplies and Services,Other Hired And Contracted Services,27/02/2013,14.25,Revenue,Adult Placement Services
Leeds City Council as Accountable Body,East - North East,1,Construction Services,7,Lebs,Supplies and Services,Other Hired And Contracted Services,27/02/2013,19,Revenue,Adult Placement Services
Leeds City Council as Accountable Body,East - North East,1,Construction Services,7,Lebs,Supplies and Services,Other Hired And Contracted Services,27/02/2013,9.5,Revenue,Adult Placement Services
Leeds City Council as Accountable Body,East - North East,1,Construction Services,7,Lebs,Supplies and Services,Other Hired And Contracted Services,27/02/2013,28.5,Revenue,Adult Placement Services
Leeds City Council as Accountable Body,East - North East,1,Construction Services,7,Lebs,Supplies and Services,Other Hired And Contracted Services,27/02/2013,47.5,Revenue,Adult Placement Services
Leeds City Council as Accountable Body,East - North East,1,Construction Services,7,Lebs,Supplies and Services,Other Hired And Contracted Services,27/02/2013,9.5,Revenue,Adult Placement Services
Leeds City Council as Accountable Body,East - North East,1,Construction Services,7,Lebs,Supplies and Services,Other Hired And Contracted Services,27/02/2013,19,Revenue,Adult Placement Services
Leeds City Council as Accountable Body,East - North East,1,Construction Services,7,Lebs,Supplies and Services,Other Hired And Contracted Services,27/02/2013,19,Revenue,Adult Placement Services
Leeds City Council as Accountable Body,East - North East,1,Construction Services,7,Lebs,Supplies and Services,Other Hired And Contracted Services,27/02/2013,19,Revenue,Adult Placement Services
Leeds City Council as Accountable Body,East - North East,1,Construction Services,7,Lebs,Supplies and Services,Other Hired And Contracted Services,27/02/2013,28.5,Revenue,Adult Placement Services
Leeds City Council as Accountable Body,East - North East,1,Construction Services,7,Lebs,Supplies and Services,Other Hired And Contracted Services,27/02/2013,57,Revenue,Adult Placement Services
Leeds City Council as Accountable Body,East - North East,1,Construction Services,7,Lebs,Supplies and Services,Other Hired And Contracted Services,27/02/2013,19,Revenue,Adult Placement Services
Leeds City Council as Accountable Body,East - North East,1,Construction Services,7,Lebs,Supplies and Services,Other Hired And Contracted Services,27/02/2013,19,Revenue,Adult Placement Services
Leeds City Council as Accountable Body,East - North East,1,Construction Services,7,Lebs,Supplies and Services,Other Hired And Contracted Services,27/02/2013,19,Revenue,Adult Placement Services
Leeds City Council as Accountable Body,East - North East,1,Construction Services,7,Lebs,Supplies and Services,Other Hired And Contracted Services,27/02/2013,28.5,Revenue,Adult Placement Services
Leeds City Council as Accountable Body,East - North East,1,Construction Services,7,Lebs,Supplies and Services,Other Hired And Contracted Services,27/02/2013,38,Revenue,Adult Placement Services
Leeds City Council as Accountable Body,East - North East,1,Construction Services,7,Lebs,Supplies and Services,Other Hired And Contracted Services,27/02/2013,9.5,Revenue,Adult Placement Services
Leeds City Council as Accountable Body,East - North East,1,Construction Services,7,Lebs,Supplies and Services,Other Hired And Contracted Services,27/02/2013,19,Revenue,Adult Placement Services
Leeds City Council as Accountable Body,East - North East,1,Construction Services,7,Lebs,Supplies and Services,Other Hired And Contracted Services,27/02/2013,19,Revenue,Adult Placement Services
Leeds City Council as Accountable Body,East - North East,1,Construction Services,7,Lebs,Supplies and Services,Other Hired And Contracted Services,27/02/2013,19,Revenue,Adult Placement Services
Leeds City Council as Accountable Body,East - North East,1,Construction Services,7,Lebs,Supplies and Services,Other Hired And Contracted Services,27/02/2013,19,Revenue,Adult Placement Services
Leeds City Council as Accountable Body,East - North East,1,Construction Services,7,Lebs,Supplies and Services,Other Hired And Contracted Services,27/02/2013,28.5,Revenue,Adult Placement Services
Leeds City Council as Accountable Body,East - North East,1,Construction Services,7,Lebs,Supplies and Services,Other Hired And Contracted Services,27/02/2013,57,Revenue,Adult Placement Services
Leeds City Council as Accountable Body,East - North East,1,Construction Services,7,Lebs,Supplies and Services,Other Hired And Contracted Services,27/02/2013,47.5,Revenue,Adult Placement Services
Leeds City Council as Accountable Body,East - North East,1,Construction Services,7,Lebs,Supplies and Services,Other Hired And Contracted Services,27/02/2013,38,Revenue,Adult Placement Services
Leeds City Council as Accountable Body,East - North East,1,Construction Services,7,Lebs,Supplies and Services,Other Hired And Contracted Services,27/02/2013,57,Revenue,Adult Placement Services
Leeds City Council as Accountable Body,East - North East,1,Construction Services,7,Lebs,Supplies and Services,Other Hired And Contracted Services,27/02/2013,19,Revenue,Adult Placement Services
Leeds City Council as Accountable Body,East - North East,1,Construction Services,7,Lebs,Supplies and Services,Other Hired And Contracted Services,27/02/2013,19,Revenue,Adult Placement Services
Leeds City Council as Accountable Body,East - North East,1,Construction Services,7,Lebs,Supplies and Services,Other Hired And Contracted Services,27/02/2013,19,Revenue,Adult Placement Services
Leeds City Council as Accountable Body,East - North East,1,Construction Services,7,Lebs,Supplies and Services,Other Hired And Contracted Services,27/02/2013,28.5,Revenue,Adult Placement Services
Leeds City Council as Accountable Body,East - North East,1,Construction Services,7,Lebs,Supplies and Services,Other Hired And Contracted Services,27/02/2013,66.5,Revenue,Adult Placement Services
Leeds City Council as Accountable Body,East - North East,1,Construction Services,7,Lebs,Supplies and Services,Other Hired And Contracted Services,27/02/2013,19,Revenue,Adult Placement Services
Leeds City Council as Accountable Body,East - North East,1,Construction Services,7,Lebs,Supplies and Services,Other Hired And Contracted Services,27/02/2013,57,Revenue,Adult Placement Services
Leeds City Council as Accountable Body,East - North East,1,Construction Services,7,Lebs,Supplies and Services,Other Hired And Contracted Services,27/02/2013,9.5,Revenue,Adult Placement Services
Leeds City Council as Accountable Body,East - North East,1,Construction Services,7,Lebs,Supplies and Services,Other Hired And Contracted Services,27/02/2013,47.5,Revenue,Adult Placement Services
Leeds City Council as Accountable Body,East - North East,1,Construction Services,7,Lebs,Supplies and Services,Other Hired And Contracted Services,27/02/2013,85.5,Revenue,Adult Placement Services
Leeds City Council as Accountable Body,East - North East,1,Construction Services,7,Lebs,Supplies and Services,Other Hired And Contracted Services,08/02/2013,142.5,Revenue,Adult Placement Services
Leeds City Council as Accountable Body,East - North East,1,Construction Services,7,Lebs,Supplies and Services,Other Hired And Contracted Services,08/02/2013,19,Revenue,Adult Placement Services
Leeds City Council as Accountable Body,East - North East,1,Construction Services,7,Lebs,Supplies and Services,Other Hired And Contracted Services,08/02/2013,38,Revenue,Adult Placement Services
Leeds City Council as Accountable Body,East - North East,1,Construction Services,7,Lebs,Supplies and Services,Other Hired And Contracted Services,08/02/2013,22.23,Revenue,Adult Placement Services
Leeds City Council as Accountable Body,East - North East,1,Construction Services,7,Lebs,Supplies and Services,Other Hired And Contracted Services,08/02/2013,19,Revenue,Adult Placement Services
Leeds City Council as Accountable Body,East - North East,1,Construction Services,7,Lebs,Supplies and Services,Other Hired And Contracted Services,08/02/2013,44.27,Revenue,Adult Placement Services
Leeds City Council as Accountable Body,East - North East,1,Construction Services,7,Lebs,Supplies and Services,Other Hired And Contracted Services,08/02/2013,28.5,Revenue,Adult Placement Services
Leeds City Council as Accountable Body,East - North East,1,Construction Services,7,Lebs,Supplies and Services,Other Hired And Contracted Services,08/02/2013,28.5,Revenue,Adult Placement Services
Leeds City Council as Accountable Body,East - North East,1,Construction Services,7,Lebs,Supplies and Services,Other Hired And Contracted Services,08/02/2013,9.5,Revenue,Adult Placement Services
Leeds City Council as Accountable Body,East - North East,1,Construction Services,7,Lebs,Supplies and Services,Other Hired And Contracted Services,08/02/2013,9.5,Revenue,Adult Placement Services
Leeds City Council as Accountable Body,East - North East,1,Construction Services,7,Lebs,Supplies and Services,Other Hired And Contracted Services,08/02/2013,76,Revenue,Adult Placement Services
Leeds City Council as Accountable Body,East - North East,1,Construction Services,7,Lebs,Supplies and Services,Other Hired And Contracted Services,08/02/2013,28.5,Revenue,Adult Placement Services
Leeds City Council as Accountable Body,East - North East,1,Construction Services,7,Lebs,Supplies and Services,Other Hired And Contracted Services,08/02/2013,33.25,Revenue,Adult Placement Services
Leeds City Council as Accountable Body,East - North East,1,Construction Services,7,Lebs,Supplies and Services,Other Hired And Contracted Services,08/02/2013,28.5,Revenue,Adult Placement Services
Leeds City Council as Accountable Body,East - North East,1,Construction Services,7,Lebs,Supplies and Services,Other Hired And Contracted Services,08/02/2013,14.25,Revenue,Adult Placement Services
Leeds City Council as Accountable Body,East - North East,1,Construction Services,7,Lebs,Supplies and Services,Other Hired And Contracted Services,08/02/2013,38,Revenue,Adult Placement Services
Leeds City Council as Accountable Body,East - North East,1,Construction Services,7,Lebs,Supplies and Services,Other Hired And Contracted Services,08/02/2013,38,Revenue,Adult Placement Services
Leeds City Council as Accountable Body,East - North East,1,Construction Services,7,Lebs,Supplies and Services,Other Hired And Contracted Services,08/02/2013,33.25,Revenue,Adult Placement Services
Leeds City Council as Accountable Body,East - North East,1,Construction Services,7,Lebs,Supplies and Services,Other Hired And Contracted Services,08/02/2013,38,Revenue,Adult Placement Services
Leeds City Council as Accountable Body,East - North East,1,Construction Services,7,Lebs,Supplies and Services,Other Hired And Contracted Services,08/02/2013,23.75,Revenue,Adult Placement Services
Leeds City Council as Accountable Body,East - North East,1,Construction Services,7,Lebs,Supplies and Services,Other Hired And Contracted Services,08/02/2013,66.5,Revenue,Adult Placement Services
Leeds City Council as Accountable Body,East - North East,1,Construction Services,7,Lebs,Supplies and Services,Other Hired And Contracted Services,08/02/2013,85.5,Revenue,Adult Placement Services
Leeds City Council as Accountable Body,East - North East,1,Construction Services,7,Lebs,Supplies and Services,Other Hired And Contracted Services,08/02/2013,19,Revenue,Adult Placement Services
Leeds City Council as Accountable Body,East - North East,1,Construction Services,7,Lebs,Supplies and Services,Other Hired And Contracted Services,08/02/2013,28.5,Revenue,Adult Placement Services
Leeds City Council as Accountable Body,East - North East,1,Construction Services,7,Lebs,Supplies and Services,Other Hired And Contracted Services,08/02/2013,47.5,Revenue,Adult Placement Services
Leeds City Council as Accountable Body,East - North East,1,Construction Services,7,Lebs,Supplies and Services,Other Hired And Contracted Services,08/02/2013,57,Revenue,Adult Placement Services
Leeds City Council as Accountable Body,East - North East,1,Construction Services,7,Lebs,Supplies and Services,Other Hired And Contracted Services,08/02/2013,38,Revenue,Adult Placement Services
Leeds City Council as Accountable Body,East - North East,1,Construction Services,7,Lebs,Supplies and Services,Other Hired And Contracted Services,08/02/2013,28.5,Revenue,Adult Placement Services
Leeds City Council as Accountable Body,East - North East,1,Construction Services,7,Lebs,Supplies and Services,Other Hired And Contracted Services,08/02/2013,19,Revenue,Adult Placement Services
Leeds City Council as Accountable Body,East - North East,1,Construction Services,7,Lebs,Supplies and Services,Other Hired And Contracted Services,08/02/2013,9.5,Revenue,Adult Placement Services
Leeds City Council as Accountable Body,East - North East,1,Construction Services,7,Lebs,Supplies and Services,Other Hired And Contracted Services,08/02/2013,19,Revenue,Adult Placement Services
Leeds City Council as Accountable Body,East - North East,1,Construction Services,7,Lebs,Supplies and Services,Other Hired And Contracted Services,08/02/2013,9.5,Revenue,Adult Placement Services
Leeds City Council as Accountable Body,East - North East,1,Construction Services,7,Lebs,Supplies and Services,Other Hired And Contracted Services,08/02/2013,28.5,Revenue,Adult Placement Services
Leeds City Council as Accountable Body,East - North East,1,Construction Services,7,Lebs,Supplies and Services,Other Hired And Contracted Services,08/02/2013,38,Revenue,Adult Placement Services
Leeds City Council as Accountable Body,East - North East,1,Construction Services,7,Lebs,Supplies and Services,Other Hired And Contracted Services,08/02/2013,19,Revenue,Adult Placement Services
Leeds City Council as Accountable Body,East - North East,1,Construction Services,7,Lebs,Supplies and Services,Other Hired And Contracted Services,08/02/2013,19,Revenue,Adult Placement Services
Leeds City Council as Accountable Body,East - North East,1,Construction Services,7,Lebs,Supplies and Services,Other Hired And Contracted Services,08/02/2013,14.25,Revenue,Adult Placement Services
Leeds City Council as Accountable Body,East - North East,1,Construction Services,7,Lebs,Supplies and Services,Other Hired And Contracted Services,08/02/2013,9.5,Revenue,Adult Placement Services
Leeds City Council as Accountable Body,East - North East,1,Construction Services,7,Lebs,Supplies and Services,Other Hired And Contracted Services,08/02/2013,14.25,Revenue,Adult Placement Services
Leeds City Council as Accountable Body,East - North East,1,Construction Services,7,Lebs,Supplies and Services,Other Hired And Contracted Services,08/02/2013,28.5,Revenue,Adult Placement Services
Leeds City Council as Accountable Body,East - North East,1,Construction Services,7,Lebs,Supplies and Services,Other Hired And Contracted Services,08/02/2013,38,Revenue,Adult Placement Services
Leeds City Council as Accountable Body,East - North East,1,Construction Services,7,Lebs,Supplies and Services,Other Hired And Contracted Services,08/02/2013,19,Revenue,Adult Placement Services
Leeds City Council as Accountable Body,East - North East,1,Construction Services,7,Lebs,Supplies and Services,Other Hired And Contracted Services,08/02/2013,19,Revenue,Adult Placement Services
Leeds City Council as Accountable Body,East - North East,1,Construction Services,7,Lebs,Supplies and Services,Other Hired And Contracted Services,08/02/2013,14.25,Revenue,Adult Placement Services
Leeds City Council as Accountable Body,East - North East,1,Construction Services,7,Lebs,Supplies and Services,Other Hired And Contracted Services,08/02/2013,23.75,Revenue,Adult Placement Services
Leeds City Council as Accountable Body,East - North East,1,Construction Services,7,Lebs,Supplies and Services,Other Hired And Contracted Services,08/02/2013,19,Revenue,Adult Placement Services
Leeds City Council as Accountable Body,East - North East,1,Construction Services,7,Lebs,Supplies and Services,Other Hired And Contracted Services,08/02/2013,38,Revenue,Adult Placement Services
Leeds City Council as Accountable Body,East - North East,1,Construction Services,7,Lebs,Supplies and Services,Other Hired And Contracted Services,08/02/2013,42.75,Revenue,Adult Placement Services
Leeds City Council as Accountable Body,East - North East,1,Construction Services,7,Lebs,Supplies and Services,Other Hired And Contracted Services,08/02/2013,4.75,Revenue,Adult Placement Services
Leeds City Council as Accountable Body,East - North East,1,Construction Services,7,Lebs,Supplies and Services,Other Hired And Contracted Services,08/02/2013,57,Revenue,Adult Placement Services
Leeds City Council as Accountable Body,East - North East,1,Construction Services,7,Lebs,Supplies and Services,Other Hired And Contracted Services,08/02/2013,33.25,Revenue,Adult Placement Services
Leeds City Council as Accountable Body,East - North East,1,Construction Services,7,Lebs,Supplies and Services,Other Hired And Contracted Services,08/02/2013,23.75,Revenue,Adult Placement Services
Leeds City Council as Accountable Body,East - North East,1,Construction Services,7,Lebs,Supplies and Services,Other Hired And Contracted Services,08/02/2013,47.5,Revenue,Adult Placement Services
Leeds City Council as Accountable Body,East - North East,1,Construction Services,7,Lebs,Supplies and Services,Other Hired And Contracted Services,08/02/2013,28.5,Revenue,Adult Placement Services
Leeds City Council as Accountable Body,East - North East,1,Construction Services,7,Lebs,Supplies and Services,Other Hired And Contracted Services,08/02/2013,33.25,Revenue,Adult Placement Services
Leeds City Council as Accountable Body,East - North East,1,Construction Services,7,Lebs,Supplies and Services,Other Hired And Contracted Services,08/02/2013,7.98,Revenue,Adult Placement Services
Leeds City Council as Accountable Body,East - North East,1,Construction Services,7,Lebs,Supplies and Services,Other Hired And Contracted Services,08/02/2013,6.27,Revenue,Adult Placement Services
Leeds City Council as Accountable Body,East - North East,1,Construction Services,7,Lebs,Supplies and Services,Other Hired And Contracted Services,08/02/2013,71.25,Revenue,Adult Placement Services
Leeds City Council as Accountable Body,East - North East,1,Construction Services,7,Lebs,Supplies and Services,Other Hired And Contracted Services,08/02/2013,33.25,Revenue,Adult Placement Services
Leeds City Council as Accountable Body,East - North East,1,Construction Services,7,Lebs,Supplies and Services,Other Hired And Contracted Services,21/02/2013,950,Revenue,Adult Placement Services
Leeds City Council as Accountable Body,East - North East,1,Construction Services,7,Lebs,Supplies and Services,Other Hired And Contracted Services,21/02/2013,950,Revenue,Adult Placement Services
Leeds City Council as Accountable Body,East - North East,1,Construction Services,7,Lebs,Supplies and Services,Other Hired And Contracted Services,21/02/2013,1064,Revenue,Adult Placement Services
Leeds City Council as Accountable Body,East - North East,1,Construction Services,7,Lebs,Supplies and Services,Other Hired And Contracted Services,21/02/2013,1520,Revenue,Adult Placement Services
Leeds City Council as Accountable Body,East - North East,1,Construction Services,7,Lebs,Supplies and Services,Other Hired And Contracted Services,21/02/2013,1520,Revenue,Adult Placement Services
Leeds City Council as Accountable Body,East - North East,1,Construction Services,7,Lebs,Supplies and Services,Other Hired And Contracted Services,21/02/2013,33.25,Revenue,Adult Placement Services
Leeds City Council as Accountable Body,East - North East,1,Construction Services,7,Lebs,Supplies and Services,Other Hired And Contracted Services,21/02/2013,9.5,Revenue,Adult Placement Services
Leeds City Council as Accountable Body,East - North East,1,Construction Services,7,Lebs,Supplies and Services,Other Hired And Contracted Services,21/02/2013,28.5,Revenue,Adult Placement Services
Leeds City Council as Accountable Body,East - North East,1,Construction Services,7,Lebs,Supplies and Services,Other Hired And Contracted Services,21/02/2013,19,Revenue,Adult Placement Services
Leeds City Council as Accountable Body,East - North East,1,Construction Services,7,Lebs,Supplies and Services,Other Hired And Contracted Services,21/02/2013,47.5,Revenue,Adult Placement Services
Leeds City Council as Accountable Body,East - North East,1,Construction Services,7,Lebs,Supplies and Services,Other Hired And Contracted Services,21/02/2013,28.5,Revenue,Adult Placement Services
Leeds City Council as Accountable Body,East - North East,1,Construction Services,7,Lebs,Supplies and Services,Other Hired And Contracted Services,21/02/2013,19,Revenue,Adult Placement Services
Leeds City Council as Accountable Body,East - North East,1,Construction Services,7,Lebs,Supplies and Services,Other Hired And Contracted Services,21/02/2013,19,Revenue,Adult Placement Services
Leeds City Council as Accountable Body,East - North East,1,Construction Services,7,Lebs,Supplies and Services,Other Hired And Contracted Services,21/02/2013,38,Revenue,Adult Placement Services
Leeds City Council as Accountable Body,East - North East,1,Construction Services,7,Lebs,Supplies and Services,Other Hired And Contracted Services,21/02/2013,9.5,Revenue,Adult Placement Services
Leeds City Council as Accountable Body,East - North East,1,Construction Services,7,Lebs,Supplies and Services,Other Hired And Contracted Services,21/02/2013,4.75,Revenue,Adult Placement Services
Leeds City Council as Accountable Body,East - North East,1,Construction Services,7,Lebs,Supplies and Services,Other Hired And Contracted Services,21/02/2013,42.75,Revenue,Adult Placement Services
Leeds City Council as Accountable Body,East - North East,1,Construction Services,7,Lebs,Supplies and Services,Other Hired And Contracted Services,21/02/2013,9.5,Revenue,Adult Placement Services
Leeds City Council as Accountable Body,East - North East,1,Construction Services,7,Lebs,Supplies and Services,Other Hired And Contracted Services,21/02/2013,19,Revenue,Adult Placement Services
Leeds City Council as Accountable Body,East - North East,1,Construction Services,7,Lebs,Supplies and Services,Other Hired And Contracted Services,21/02/2013,28.5,Revenue,Adult Placement Services
Leeds City Council as Accountable Body,East - North East,1,Construction Services,7,Lebs,Supplies and Services,Other Hired And Contracted Services,21/02/2013,47.5,Revenue,Adult Placement Services
Leeds City Council as Accountable Body,East - North East,1,Construction Services,7,Lebs,Supplies and Services,Other Hired And Contracted Services,21/02/2013,47.5,Revenue,Adult Placement Services
Leeds City Council as Accountable Body,East - North East,1,Construction Services,7,Lebs,Supplies and Services,Other Hired And Contracted Services,21/02/2013,38,Revenue,Adult Placement Services
Leeds City Council as Accountable Body,East - North East,1,Construction Services,7,Lebs,Supplies and Services,Other Hired And Contracted Services,21/02/2013,47.5,Revenue,Adult Placement Services
Leeds City Council as Accountable Body,East - North East,1,Construction Services,7,Lebs,Supplies and Services,Other Hired And Contracted Services,21/02/2013,19,Revenue,Adult Placement Services
Leeds City Council as Accountable Body,East - North East,1,Construction Services,7,Lebs,Supplies and Services,Other Hired And Contracted Services,21/02/2013,38,Revenue,Adult Placement Services
Leeds City Council as Accountable Body,East - North East,1,Construction Services,7,Lebs,Supplies and Services,Other Hired And Contracted Services,21/02/2013,19,Revenue,Adult Placement Services
Leeds City Council as Accountable Body,East - North East,1,Construction Services,7,Lebs,Supplies and Services,Other Hired And Contracted Services,21/02/2013,19,Revenue,Adult Placement Services
Leeds City Council as Accountable Body,East - North East,1,Construction Services,7,Lebs,Supplies and Services,Other Hired And Contracted Services,21/02/2013,66.5,Revenue,Adult Placement Services
Leeds City Council as Accountable Body,East - North East,1,Construction Services,7,Lebs,Supplies and Services,Other Hired And Contracted Services,21/02/2013,47.5,Revenue,Adult Placement Services
Leeds City Council as Accountable Body,East - North East,1,Construction Services,7,Lebs,Supplies and Services,Other Hired And Contracted Services,21/02/2013,38,Revenue,Adult Placement Services
Leeds City Council as Accountable Body,East - North East,1,Construction Services,7,Lebs,Supplies and Services,Other Hired And Contracted Services,21/02/2013,66.5,Revenue,Adult Placement Services
Leeds City Council as Accountable Body,East - North East,1,Construction Services,7,Lebs,Supplies and Services,Other Hired And Contracted Services,21/02/2013,66.5,Revenue,Adult Placement Services
Leeds City Council as Accountable Body,East - North East,1,Construction Services,7,Lebs,Supplies and Services,Other Hired And Contracted Services,21/02/2013,47.5,Revenue,Adult Placement Services
Leeds City Council as Accountable Body,East - North East,1,Construction Services,7,Lebs,Supplies and Services,Other Hired And Contracted Services,21/02/2013,19,Revenue,Adult Placement Services
Leeds City Council as Accountable Body,East - North East,1,Construction Services,7,Lebs,Supplies and Services,Other Hired And Contracted Services,21/02/2013,47.5,Revenue,Adult Placement Services
Leeds City Council as Accountable Body,East - North East,1,Construction Services,7,Lebs,Supplies and Services,Other Hired And Contracted Services,21/02/2013,38,Revenue,Adult Placement Services
Leeds City Council as Accountable Body,East - North East,1,Construction Services,7,Lebs,Supplies and Services,Other Hired And Contracted Services,21/02/2013,28.5,Revenue,Adult Placement Services
Leeds City Council as Accountable Body,East - North East,1,Construction Services,7,Lebs,Supplies and Services,Other Hired And Contracted Services,21/02/2013,19,Revenue,Adult Placement Services
Leeds City Council as Accountable Body,East - North East,1,Construction Services,7,Lebs,Supplies and Services,Other Hired And Contracted Services,21/02/2013,57,Revenue,Adult Placement Services
Leeds City Council as Accountable Body,East - North East,1,Construction Services,7,Lebs,Supplies and Services,Other Hired And Contracted Services,21/02/2013,38,Revenue,Adult Placement Services
Leeds City Council as Accountable Body,East - North East,1,Construction Services,7,Lebs,Supplies and Services,Other Hired And Contracted Services,21/02/2013,9.5,Revenue,Adult Placement Services
Leeds City Council as Accountable Body,East - North East,1,Construction Services,7,Lebs,Supplies and Services,Other Hired And Contracted Services,21/02/2013,28.5,Revenue,Adult Placement Services
Leeds City Council as Accountable Body,East - North East,1,Construction Services,7,Lebs,Supplies and Services,Other Hired And Contracted Services,21/02/2013,14.25,Revenue,Adult Placement Services
Leeds City Council as Accountable Body,East - North East,1,Construction Services,7,Lebs,Supplies and Services,Other Hired And Contracted Services,21/02/2013,9.5,Revenue,Adult Placement Services
Leeds City Council as Accountable Body,East - North East,1,Construction Services,7,Lebs,Supplies and Services,Other Hired And Contracted Services,21/02/2013,19,Revenue,Adult Placement Services
Leeds City Council as Accountable Body,East - North East,1,Construction Services,7,Lebs,Supplies and Services,Other Hired And Contracted Services,21/02/2013,28.5,Revenue,Adult Placement Services
Leeds City Council as Accountable Body,East - North East,1,Construction Services,7,Lebs,Supplies and Services,Other Hired And Contracted Services,21/02/2013,-7.98,Revenue,Adult Placement Services
Leeds City Council as Accountable Body,East - North East,1,Construction Services,7,Lebs,Supplies and Services,Other Hired And Contracted Services,21/02/2013,-28.5,Revenue,Adult Placement Services
Leeds City Council as Accountable Body,East - North East,1,Construction Services,7,Lebs,Supplies and Services,Other Hired And Contracted Services,21/02/2013,9.5,Revenue,Adult Placement Services
Leeds City Council as Accountable Body,East - North East,1,Construction Services,7,Lebs,Supplies and Services,Other Hired And Contracted Services,21/02/2013,14.25,Revenue,Adult Placement Services
Leeds City Council as Accountable Body,East - North East,1,Construction Services,7,Lebs,Supplies and Services,Other Hired And Contracted Services,21/02/2013,9.5,Revenue,Adult Placement Services
Leeds City Council as Accountable Body,East - North East,1,Construction Services,7,Lebs,Supplies and Services,Other Hired And Contracted Services,21/02/2013,19,Revenue,Adult Placement Services
Leeds City Council as Accountable Body,East - North East,1,Construction Services,7,Lebs,Supplies and Services,Other Hired And Contracted Services,21/02/2013,23.75,Revenue,Adult Placement Services
Leeds City Council as Accountable Body,East - North East,1,Construction Services,7,Lebs,Supplies and Services,Other Hired And Contracted Services,21/02/2013,9.5,Revenue,Adult Placement Services
Leeds City Council as Accountable Body,East - North East,1,Construction Services,7,Lebs,Supplies and Services,Other Hired And Contracted Services,21/02/2013,12.73,Revenue,Adult Placement Services
Leeds City Council as Accountable Body,East - North East,1,Construction Services,7,Lebs,Supplies and Services,Other Hired And Contracted Services,21/02/2013,6.27,Revenue,Adult Placement Services
Leeds City Council as Accountable Body,East - North East,1,Construction Services,7,Lebs,Supplies and Services,Other Hired And Contracted Services,21/02/2013,6.27,Revenue,Adult Placement Services
Leeds City Council as Accountable Body,East - North East,1,Construction Services,7,Lebs,Supplies and Services,Other Hired And Contracted Services,21/02/2013,12.73,Revenue,Adult Placement Services
Leeds City Council as Accountable Body,East - North East,1,Construction Services,7,Lebs,Supplies and Services,Other Hired And Contracted Services,21/02/2013,19,Revenue,Adult Placement Services
Leeds City Council as Accountable Body,East - North East,1,Construction Services,7,Lebs,Supplies and Services,Other Hired And Contracted Services,21/02/2013,7.98,Revenue,Adult Placement Services
Leeds City Council as Accountable Body,East - North East,1,Construction Services,7,Lebs,Supplies and Services,Other Hired And Contracted Services,21/02/2013,25.27,Revenue,Adult Placement Services
Leeds City Council as Accountable Body,East - North East,1,Construction Services,7,Lebs,Supplies and Services,Other Hired And Contracted Services,21/02/2013,760,Revenue,Adult Placement Services
Leeds City Council as Accountable Body,East - North East,1,Construction Services,7,Lebs,Supplies and Services,Other Hired And Contracted Services,21/02/2013,228,Revenue,Adult Placement Services
Leeds City Council as Accountable Body,East - North East,1,Construction Services,7,Lebs,Supplies and Services,Other Hired And Contracted Services,21/02/2013,142.5,Revenue,Adult Placement Services
Leeds City Council as Accountable Body,East - North East,1,Construction Services,7,Lebs,Supplies and Services,Other Hired And Contracted Services,21/02/2013,133,Revenue,Adult Placement Services
Leeds City Council as Accountable Body,East - North East,1,Construction Services,7,Lebs,Supplies and Services,Other Hired And Contracted Services,28/01/2013,1149.5,Revenue,Adult Placement Services
Leeds City Council as Accountable Body,East - North East,1,Construction Services,7,Lebs,Supplies and Services,Other Hired And Contracted Services,28/01/2013,142.5,Revenue,Adult Placement Services
Leeds City Council as Accountable Body,East - North East,1,Construction Services,7,Lebs,Supplies and Services,Other Hired And Contracted Services,28/01/2013,1710,Revenue,Adult Placement Services
Leeds City Council as Accountable Body,East - North East,1,Construction Services,7,Lebs,Supplies and Services,Other Hired And Contracted Services,28/01/2013,1092.5,Revenue,Adult Placement Services
Leeds City Council as Accountable Body,East - North East,1,Construction Services,7,Lebs,Supplies and Services,Other Hired And Contracted Services,28/01/2013,1045,Revenue,Adult Placement Services
Leeds City Council as Accountable Body,East - North East,1,Construction Services,7,Lebs,Supplies and Services,Other Hired And Contracted Services,28/01/2013,361,Revenue,Adult Placement Services
Leeds City Council as Accountable Body,East - North East,1,Construction Services,7,Lebs,Supplies and Services,Other Hired And Contracted Services,28/01/2013,152,Revenue,Adult Placement Services
Leeds City Council as Accountable Body,East - North East,1,Construction Services,7,Lebs,Supplies and Services,Other Hired And Contracted Services,28/01/2013,161.5,Revenue,Adult Placement Services
Leeds City Council as Accountable Body,East - North East,1,Construction Services,7,Lebs,Supplies and Services,Other Hired And Contracted Services,28/01/2013,760,Revenue,Adult Placement Services
Leeds City Council as Accountable Body,East - North East,1,Construction Services,7,Lebs,Supplies and Services,Other Hired And Contracted Services,28/01/2013,152,Revenue,Adult Placement Services
Leeds City Council as Accountable Body,East - North East,1,Construction Services,7,Lebs,Supplies and Services,Other Hired And Contracted Services,28/01/2013,475,Revenue,Adult Placement Services
Leeds City Council as Accountable Body,East - North East,1,Construction Services,7,Lebs,Supplies and Services,Other Hired And Contracted Services,28/01/2013,171,Revenue,Adult Placement Services
Leeds City Council as Accountable Body,East - North East,1,Construction Services,7,Lebs,Supplies and Services,Other Hired And Contracted Services,28/01/2013,76,Revenue,Adult Placement Services
Leeds City Council as Accountable Body,East - North East,1,Construction Services,7,Lebs,Supplies and Services,Other Hired And Contracted Services,28/01/2013,617.5,Revenue,Adult Placement Services
Leeds City Council as Accountable Body,East - North East,1,Construction Services,7,Lebs,Supplies and Services,Other Hired And Contracted Services,28/01/2013,760,Revenue,Adult Placement Services
Leeds City Council as Accountable Body,East - North East,1,Construction Services,7,Lebs,Supplies and Services,Other Hired And Contracted Services,22/01/2013,23.75,Revenue,Adult Placement Services
Leeds City Council as Accountable Body,East - North East,1,Construction Services,7,Lebs,Supplies and Services,Other Hired And Contracted Services,22/01/2013,38,Revenue,Adult Placement Services
Leeds City Council as Accountable Body,East - North East,1,Construction Services,7,Lebs,Supplies and Services,Other Hired And Contracted Services,22/01/2013,38,Revenue,Adult Placement Services
Leeds City Council as Accountable Body,East - North East,1,Construction Services,7,Lebs,Supplies and Services,Other Hired And Contracted Services,22/01/2013,28.5,Revenue,Adult Placement Services
Leeds City Council as Accountable Body,East - North East,1,Construction Services,7,Lebs,Supplies and Services,Other Hired And Contracted Services,22/01/2013,14.25,Revenue,Adult Placement Services
Leeds City Council as Accountable Body,East - North East,1,Construction Services,7,Lebs,Supplies and Services,Other Hired And Contracted Services,22/01/2013,23.75,Revenue,Adult Placement Services
Leeds City Council as Accountable Body,East - North East,1,Construction Services,7,Lebs,Supplies and Services,Other Hired And Contracted Services,22/01/2013,28.5,Revenue,Adult Placement Services
Leeds City Council as Accountable Body,East - North East,1,Construction Services,7,Lebs,Supplies and Services,Other Hired And Contracted Services,22/01/2013,28.5,Revenue,Adult Placement Services
Leeds City Council as Accountable Body,East - North East,1,Construction Services,7,Lebs,Supplies and Services,Other Hired And Contracted Services,22/01/2013,33.25,Revenue,Adult Placement Services
Leeds City Council as Accountable Body,East - North East,1,Construction Services,7,Lebs,Supplies and Services,Other Hired And Contracted Services,22/01/2013,23.75,Revenue,Adult Placement Services
Leeds City Council as Accountable Body,East - North East,1,Construction Services,7,Lebs,Supplies and Services,Other Hired And Contracted Services,22/01/2013,38,Revenue,Adult Placement Services
Leeds City Council as Accountable Body,East - North East,1,Construction Services,7,Lebs,Supplies and Services,Other Hired And Contracted Services,22/01/2013,14.25,Revenue,Adult Placement Services
Leeds City Council as Accountable Body,East - North East,1,Construction Services,7,Lebs,Supplies and Services,Other Hired And Contracted Services,22/01/2013,57,Revenue,Adult Placement Services
Leeds City Council as Accountable Body,East - North East,1,Construction Services,7,Lebs,Supplies and Services,Other Hired And Contracted Services,22/01/2013,38,Revenue,Adult Placement Services
Leeds City Council as Accountable Body,East - North East,1,Construction Services,7,Lebs,Supplies and Services,Other Hired And Contracted Services,07/01/2013,52.25,Revenue,Adult Placement Services
Leeds City Council as Accountable Body,East - North East,1,Construction Services,7,Lebs,Supplies and Services,Other Hired And Contracted Services,07/01/2013,28.5,Revenue,Adult Placement Services
Leeds City Council as Accountable Body,East - North East,1,Construction Services,7,Lebs,Supplies and Services,Other Hired And Contracted Services,07/01/2013,19,Revenue,Adult Placement Services
Leeds City Council as Accountable Body,East - North East,1,Construction Services,7,Lebs,Supplies and Services,Other Hired And Contracted Services,07/01/2013,47.5,Revenue,Adult Placement Services
Leeds City Council as Accountable Body,East - North East,1,Construction Services,7,Lebs,Supplies and Services,Other Hired And Contracted Services,07/01/2013,4.75,Revenue,Adult Placement Services
Leeds City Council as Accountable Body,East - North East,1,Construction Services,7,Lebs,Supplies and Services,Other Hired And Contracted Services,07/01/2013,23.75,Revenue,Adult Placement Services
Leeds City Council as Accountable Body,East - North East,1,Construction Services,7,Lebs,Supplies and Services,Other Hired And Contracted Services,07/01/2013,38,Revenue,Adult Placement Services
Leeds City Council as Accountable Body,East - North East,1,Construction Services,7,Lebs,Supplies and Services,Other Hired And Contracted Services,07/01/2013,57,Revenue,Adult Placement Services
Leeds City Council as Accountable Body,East - North East,1,Construction Services,7,Lebs,Supplies and Services,Other Hired And Contracted Services,07/01/2013,47.5,Revenue,Adult Placement Services
Leeds City Council as Accountable Body,East - North East,1,Construction Services,7,Lebs,Supplies and Services,Other Hired And Contracted Services,07/01/2013,47.5,Revenue,Adult Placement Services
Leeds City Council as Accountable Body,East - North East,1,Construction Services,7,Lebs,Supplies and Services,Other Hired And Contracted Services,07/01/2013,47.5,Revenue,Adult Placement Services
Leeds City Council as Accountable Body,East - North East,1,Construction Services,7,Lebs,Supplies and Services,Other Hired And Contracted Services,07/01/2013,47.5,Revenue,Adult Placement Services
Leeds City Council as Accountable Body,East - North East,1,Construction Services,7,Lebs,Supplies and Services,Other Hired And Contracted Services,07/01/2013,19,Revenue,Adult Placement Services
Leeds City Council as Accountable Body,East - North East,1,Construction Services,7,Lebs,Supplies and Services,Other Hired And Contracted Services,07/01/2013,19,Revenue,Adult Placement Services
Leeds City Council as Accountable Body,East - North East,1,Construction Services,7,Lebs,Supplies and Services,Other Hired And Contracted Services,07/01/2013,38,Revenue,Adult Placement Services
Leeds City Council as Accountable Body,East - North East,1,Construction Services,7,Lebs,Supplies and Services,Other Hired And Contracted Services,07/01/2013,28.5,Revenue,Adult Placement Services
Leeds City Council as Accountable Body,East - North East,1,Construction Services,7,Lebs,Supplies and Services,Other Hired And Contracted Services,07/01/2013,38,Revenue,Adult Placement Services
Leeds City Council as Accountable Body,East - North East,1,Construction Services,7,Lebs,Supplies and Services,Other Hired And Contracted Services,07/01/2013,28.5,Revenue,Adult Placement Services
Leeds City Council as Accountable Body,East - North East,1,Construction Services,7,Lebs,Supplies and Services,Other Hired And Contracted Services,07/01/2013,9.5,Revenue,Adult Placement Services
Leeds City Council as Accountable Body,East - North East,1,Construction Services,7,Lebs,Supplies and Services,Other Hired And Contracted Services,07/01/2013,14.25,Revenue,Adult Placement Services
Leeds City Council as Accountable Body,East - North East,1,Construction Services,7,Lebs,Supplies and Services,Other Hired And Contracted Services,07/01/2013,14.25,Revenue,Adult Placement Services
Leeds City Council as Accountable Body,East - North East,1,Construction Services,7,Lebs,Supplies and Services,Other Hired And Contracted Services,07/01/2013,9.5,Revenue,Adult Placement Services
Leeds City Council as Accountable Body,East - North East,1,Construction Services,7,Lebs,Supplies and Services,Other Hired And Contracted Services,07/01/2013,28.5,Revenue,Adult Placement Services
Leeds City Council as Accountable Body,East - North East,1,Construction Services,7,Lebs,Supplies and Services,Other Hired And Contracted Services,07/01/2013,28.5,Revenue,Adult Placement Services
Leeds City Council as Accountable Body,East - North East,1,Construction Services,7,Lebs,Supplies and Services,Other Hired And Contracted Services,07/01/2013,19,Revenue,Adult Placement Services
Leeds City Council as Accountable Body,East - North East,1,Construction Services,7,Lebs,Supplies and Services,Other Hired And Contracted Services,07/01/2013,85.5,Revenue,Adult Placement Services
Leeds City Council as Accountable Body,East - North East,1,Construction Services,7,Lebs,Supplies and Services,Other Hired And Contracted Services,07/01/2013,19,Revenue,Adult Placement Services
Leeds City Council as Accountable Body,East - North East,1,Construction Services,7,Lebs,Supplies and Services,Other Hired And Contracted Services,07/01/2013,19,Revenue,Adult Placement Services
Leeds City Council as Accountable Body,East - North East,1,Construction Services,7,Lebs,Supplies and Services,Other Hired And Contracted Services,07/01/2013,34.77,Revenue,Adult Placement Services
Leeds City Council as Accountable Body,East - North East,1,Construction Services,7,Lebs,Supplies and Services,Other Hired And Contracted Services,07/01/2013,26.98,Revenue,Adult Placement Services
Leeds City Council as Accountable Body,East - North East,1,Construction Services,7,Lebs,Supplies and Services,Other Hired And Contracted Services,07/01/2013,9.5,Revenue,Adult Placement Services
Leeds City Council as Accountable Body,East - North East,1,Construction Services,7,Lebs,Supplies and Services,Other Hired And Contracted Services,07/01/2013,4.75,Revenue,Adult Placement Services
Leeds City Council as Accountable Body,East - North East,1,Construction Services,7,Lebs,Supplies and Services,Other Hired And Contracted Services,07/01/2013,9.5,Revenue,Adult Placement Services
Leeds City Council as Accountable Body,East - North East,1,Construction Services,7,Lebs,Supplies and Services,Other Hired And Contracted Services,07/01/2013,19,Revenue,Adult Placement Services
Leeds City Council as Accountable Body,East - North East,1,Construction Services,7,Lebs,Supplies and Services,Other Hired And Contracted Services,07/01/2013,23.75,Revenue,Adult Placement Services
Leeds City Council as Accountable Body,East - North East,1,Construction Services,7,Lebs,Supplies and Services,Other Hired And Contracted Services,07/01/2013,14.25,Revenue,Adult Placement Services
Leeds City Council as Accountable Body,East - North East,1,Construction Services,7,Lebs,Supplies and Services,Other Hired And Contracted Services,07/01/2013,28.5,Revenue,Adult Placement Services
Leeds City Council as Accountable Body,East - North East,1,Construction Services,7,Lebs,Supplies and Services,Other Hired And Contracted Services,07/01/2013,28.5,Revenue,Adult Placement Services
Leeds City Council as Accountable Body,East - North East,1,Construction Services,7,Lebs,Supplies and Services,Other Hired And Contracted Services,07/01/2013,14.25,Revenue,Adult Placement Services
Leeds City Council as Accountable Body,East - North East,1,Construction Services,7,Lebs,Supplies and Services,Other Hired And Contracted Services,07/01/2013,33.25,Revenue,Adult Placement Services
Leeds City Council as Accountable Body,East - North East,1,Construction Services,7,Lebs,Supplies and Services,Other Hired And Contracted Services,07/01/2013,23.75,Revenue,Adult Placement Services
Leeds City Council as Accountable Body,East - North East,1,Construction Services,7,Lebs,Supplies and Services,Other Hired And Contracted Services,07/01/2013,14.25,Revenue,Adult Placement Services
Leeds City Council as Accountable Body,East - North East,1,Construction Services,7,Lebs,Supplies and Services,Other Hired And Contracted Services,07/01/2013,28.5,Revenue,Adult Placement Services
Leeds City Council as Accountable Body,East - North East,1,Construction Services,7,Lebs,Supplies and Services,Other Hired And Contracted Services,07/01/2013,14.25,Revenue,Adult Placement Services
Leeds City Council as Accountable Body,East - North East,1,Construction Services,7,Lebs,Supplies and Services,Other Hired And Contracted Services,07/01/2013,28.5,Revenue,Adult Placement Services
Leeds City Council as Accountable Body,East - North East,1,Construction Services,7,Lebs,Supplies and Services,Other Hired And Contracted Services,07/01/2013,33.25,Revenue,Adult Placement Services
Leeds City Council as Accountable Body,East - North East,1,Construction Services,7,Lebs,Supplies and Services,Other Hired And Contracted Services,07/01/2013,38,Revenue,Adult Placement Services
Leeds City Council as Accountable Body,East - North East,1,Construction Services,7,Lebs,Supplies and Services,Other Hired And Contracted Services,07/01/2013,12.73,Revenue,Adult Placement Services
Leeds City Council as Accountable Body,East - North East,1,Construction Services,7,Lebs,Supplies and Services,Other Hired And Contracted Services,07/01/2013,6.27,Revenue,Adult Placement Services
Leeds City Council as Accountable Body,East - North East,1,Construction Services,7,Lebs,Supplies and Services,Other Hired And Contracted Services,07/01/2013,9.5,Revenue,Adult Placement Services
Leeds City Council as Accountable Body,East - North East,1,Construction Services,7,Lebs,Supplies and Services,Other Hired And Contracted Services,07/01/2013,6.27,Revenue,Adult Placement Services
Leeds City Council as Accountable Body,East - North East,1,Construction Services,7,Lebs,Supplies and Services,Other Hired And Contracted Services,07/01/2013,9.5,Revenue,Adult Placement Services
Leeds City Council as Accountable Body,East - North East,1,Construction Services,7,Lebs,Supplies and Services,Other Hired And Contracted Services,07/01/2013,17.48,Revenue,Adult Placement Services
Leeds City Council as Accountable Body,East - North East,1,Construction Services,7,Lebs,Supplies and Services,Other Hired And Contracted Services,07/01/2013,9.5,Revenue,Adult Placement Services
Leeds City Council as Accountable Body,East - North East,1,Construction Services,7,Lebs,Supplies and Services,Other Hired And Contracted Services,07/01/2013,4.75,Revenue,Adult Placement Services
Leeds City Council as Accountable Body,East - North East,1,Construction Services,7,Lebs,Supplies and Services,Other Hired And Contracted Services,07/01/2013,28.5,Revenue,Adult Placement Services
Leeds City Council as Accountable Body,East - North East,1,Construction Services,7,Lebs,Supplies and Services,Other Hired And Contracted Services,07/01/2013,261.25,Revenue,Adult Placement Services
Leeds City Council as Accountable Body,East - North East,1,Construction Services,7,Lebs,Supplies and Services,Other Hired And Contracted Services,07/01/2013,38,Revenue,Adult Placement Services
Leeds City Council as Accountable Body,East - North East,1,Construction Services,7,Lebs,Supplies and Services,Other Hired And Contracted Services,07/01/2013,85.5,Revenue,Adult Placement Services
Leeds City Council as Accountable Body,East - North East,1,Construction Services,7,Lebs,Supplies and Services,Other Hired And Contracted Services,07/01/2013,28.5,Revenue,Adult Placement Services
Leeds City Council as Accountable Body,East - North East,1,Construction Services,7,Lebs,Supplies and Services,Other Hired And Contracted Services,07/01/2013,33.25,Revenue,Adult Placement Services
Leeds City Council as Accountable Body,East - North East,1,Construction Services,7,Lebs,Supplies and Services,Other Hired And Contracted Services,07/01/2013,52.25,Revenue,Adult Placement Services
Leeds City Council as Accountable Body,East - North East,1,Construction Services,7,Lebs,Supplies and Services,Other Hired And Contracted Services,07/01/2013,19,Revenue,Adult Placement Services
Leeds City Council as Accountable Body,East - North East,1,Construction Services,7,Lebs,Supplies and Services,Other Hired And Contracted Services,07/01/2013,42.75,Revenue,Adult Placement Services
Leeds City Council as Accountable Body,East - North East,1,Construction Services,7,Lebs,Supplies and Services,Other Hired And Contracted Services,07/01/2013,42.75,Revenue,Adult Placement Services
Leeds City Council as Accountable Body,East - North East,1,Construction Services,7,Lebs,Supplies and Services,Other Hired And Contracted Services,07/01/2013,38,Revenue,Adult Placement Services
Leeds City Council as Accountable Body,East - North East,1,Construction Services,7,Lebs,Supplies and Services,Other Hired And Contracted Services,07/01/2013,19,Revenue,Adult Placement Services
Leeds City Council as Accountable Body,East - North East,1,Construction Services,7,Lebs,Supplies and Services,Other Hired And Contracted Services,07/01/2013,14.25,Revenue,Adult Placement Services
Leeds City Council as Accountable Body,East - North East,1,Construction Services,7,Lebs,Supplies and Services,Other Hired And Contracted Services,07/01/2013,28.5,Revenue,Adult Placement Services
Leeds City Council as Accountable Body,East - North East,1,Construction Services,7,Lebs,Supplies and Services,Other Hired And Contracted Services,07/01/2013,451.25,Revenue,Adult Placement Services
Leeds City Council as Accountable Body,East - North East,1,Construction Services,7,Lebs,Supplies and Services,Other Hired And Contracted Services,07/01/2013,4.75,Revenue,Adult Placement Services
Leeds City Council as Accountable Body,East - North East,1,Construction Services,7,Lebs,Supplies and Services,Other Hired And Contracted Services,07/01/2013,19,Revenue,Adult Placement Services
Leeds City Council as Accountable Body,East - North East,1,Construction Services,7,Lebs,Supplies and Services,Other Hired And Contracted Services,07/01/2013,9.5,Revenue,Adult Placement Services
Leeds City Council as Accountable Body,East - North East,1,Construction Services,7,Lebs,Supplies and Services,Other Hired And Contracted Services,07/01/2013,4.75,Revenue,Adult Placement Services
Leeds City Council as Accountable Body,East - North East,1,Construction Services,7,Lebs,Supplies and Services,Other Hired And Contracted Services,07/01/2013,4.75,Revenue,Adult Placement Services
Leeds City Council as Accountable Body,East - North East,1,Construction Services,7,Lebs,Supplies and Services,Other Hired And Contracted Services,07/01/2013,9.5,Revenue,Adult Placement Services
Leeds City Council as Accountable Body,East - North East,1,Construction Services,7,Lebs,Supplies and Services,Other Hired And Contracted Services,07/01/2013,4.75,Revenue,Adult Placement Services
Leeds City Council as Accountable Body,East - North East,1,Construction Services,7,Lebs,Supplies and Services,Other Hired And Contracted Services,07/01/2013,4.75,Revenue,Adult Placement Services
Leeds City Council as Accountable Body,East - North East,1,Construction Services,7,Lebs,Supplies and Services,Other Hired And Contracted Services,07/01/2013,9.5,Revenue,Adult Placement Services
Leeds City Council as Accountable Body,East - North East,1,Construction Services,7,Lebs,Supplies and Services,Other Hired And Contracted Services,07/01/2013,14.25,Revenue,Adult Placement Services
Leeds City Council as Accountable Body,East - North East,1,Construction Services,7,Lebs,Supplies and Services,Other Hired And Contracted Services,07/01/2013,9.5,Revenue,Adult Placement Services
Leeds City Council as Accountable Body,East - North East,1,Construction Services,7,Lebs,Supplies and Services,Other Hired And Contracted Services,07/01/2013,9.5,Revenue,Adult Placement Services
Leeds City Council as Accountable Body,East - North East,1,Construction Services,7,Lebs,Supplies and Services,Other Hired And Contracted Services,07/01/2013,4.75,Revenue,Adult Placement Services
Leeds City Council as Accountable Body,East - North East,1,Construction Services,7,Lebs,Supplies and Services,Other Hired And Contracted Services,07/01/2013,104.5,Revenue,Adult Placement Services
Leeds City Council as Accountable Body,East - North East,1,Construction Services,7,Lebs,Supplies and Services,Other Hired And Contracted Services,07/01/2013,370.5,Revenue,Adult Placement Services
Leeds City Council as Accountable Body,East - North East,1,Construction Services,7,Lebs,Supplies and Services,Other Hired And Contracted Services,07/01/2013,19,Revenue,Adult Placement Services
Leeds City Council as Accountable Body,East - North East,1,Construction Services,7,Lebs,Supplies and Services,Other Hired And Contracted Services,03/01/2013,14.25,Revenue,Adult Placement Services
Leeds City Council as Accountable Body,East - North East,1,Construction Services,7,Lebs,Supplies and Services,Other Hired And Contracted Services,03/01/2013,14.25,Revenue,Adult Placement Services
Leeds City Council as Accountable Body,East - North East,1,Construction Services,7,Lebs,Supplies and Services,Other Hired And Contracted Services,03/01/2013,28.5,Revenue,Adult Placement Services
Leeds City Council as Accountable Body,East - North East,1,Construction Services,7,Lebs,Supplies and Services,Other Hired And Contracted Services,03/01/2013,19,Revenue,Adult Placement Services
Leeds City Council as Accountable Body,East - North East,1,Construction Services,7,Lebs,Supplies and Services,Other Hired And Contracted Services,03/01/2013,38,Revenue,Adult Placement Services
Leeds City Council as Accountable Body,East - North East,1,Construction Services,7,Lebs,Supplies and Services,Other Hired And Contracted Services,03/01/2013,28.5,Revenue,Adult Placement Services
Leeds City Council as Accountable Body,East - North East,1,Construction Services,7,Lebs,Supplies and Services,Other Hired And Contracted Services,03/01/2013,19,Revenue,Adult Placement Services
Leeds City Council as Accountable Body,East - North East,1,Construction Services,7,Lebs,Supplies and Services,Other Hired And Contracted Services,03/01/2013,38,Revenue,Adult Placement Services
Leeds City Council as Accountable Body,East - North East,1,Construction Services,7,Lebs,Supplies and Services,Other Hired And Contracted Services,03/01/2013,47.5,Revenue,Adult Placement Services
Leeds City Council as Accountable Body,East - North East,1,Construction Services,7,Lebs,Supplies and Services,Other Hired And Contracted Services,03/01/2013,19,Revenue,Adult Placement Services
Leeds City Council as Accountable Body,East - North East,1,Construction Services,7,Lebs,Supplies and Services,Other Hired And Contracted Services,03/01/2013,28.5,Revenue,Adult Placement Services
Leeds City Council as Accountable Body,East - North East,1,Construction Services,7,Lebs,Supplies and Services,Other Hired And Contracted Services,03/01/2013,47.5,Revenue,Adult Placement Services
Leeds City Council as Accountable Body,East - North East,1,Construction Services,7,Lebs,Supplies and Services,Other Hired And Contracted Services,03/01/2013,57,Revenue,Adult Placement Services
Leeds City Council as Accountable Body,East - North East,1,Construction Services,7,Lebs,Supplies and Services,Other Hired And Contracted Services,03/01/2013,19,Revenue,Adult Placement Services
Leeds City Council as Accountable Body,East - North East,1,Construction Services,7,Lebs,Supplies and Services,Other Hired And Contracted Services,03/01/2013,28.5,Revenue,Adult Placement Services
Leeds City Council as Accountable Body,East - North East,1,Construction Services,7,Lebs,Supplies and Services,Other Hired And Contracted Services,03/01/2013,76,Revenue,Adult Placement Services
Leeds City Council as Accountable Body,East - North East,1,Construction Services,7,Lebs,Supplies and Services,Other Hired And Contracted Services,03/01/2013,28.5,Revenue,Adult Placement Services
Leeds City Council as Accountable Body,East - North East,1,Construction Services,7,Lebs,Supplies and Services,Other Hired And Contracted Services,03/01/2013,19,Revenue,Adult Placement Services
Leeds City Council as Accountable Body,East - North East,1,Construction Services,7,Lebs,Supplies and Services,Other Hired And Contracted Services,03/01/2013,28.5,Revenue,Adult Placement Services
Leeds City Council as Accountable Body,East - North East,1,Construction Services,7,Lebs,Supplies and Services,Other Hired And Contracted Services,03/01/2013,47.5,Revenue,Adult Placement Services
Leeds City Council as Accountable Body,East - North East,1,Construction Services,7,Lebs,Supplies and Services,Other Hired And Contracted Services,03/01/2013,47.5,Revenue,Adult Placement Services
Leeds City Council as Accountable Body,East - North East,1,Construction Services,7,Lebs,Supplies and Services,Other Hired And Contracted Services,03/01/2013,19,Revenue,Adult Placement Services
Leeds City Council as Accountable Body,East - North East,1,Construction Services,7,Lebs,Supplies and Services,Other Hired And Contracted Services,03/01/2013,19,Revenue,Adult Placement Services
Leeds City Council as Accountable Body,East - North East,1,Construction Services,7,Lebs,Supplies and Services,Other Hired And Contracted Services,03/01/2013,28.5,Revenue,Adult Placement Services
Leeds City Council as Accountable Body,East - North East,1,Construction Services,7,Lebs,Supplies and Services,Other Hired And Contracted Services,03/01/2013,57,Revenue,Adult Placement Services
Leeds City Council as Accountable Body,East - North East,1,Construction Services,7,Lebs,Supplies and Services,Other Hired And Contracted Services,03/01/2013,38,Revenue,Adult Placement Services
Leeds City Council as Accountable Body,East - North East,1,Construction Services,7,Lebs,Supplies and Services,Other Hired And Contracted Services,03/01/2013,7.98,Revenue,Adult Placement Services
Leeds City Council as Accountable Body,East - North East,1,Construction Services,7,Lebs,Supplies and Services,Other Hired And Contracted Services,03/01/2013,6.27,Revenue,Adult Placement Services
Leeds City Council as Accountable Body,East - North East,1,Construction Services,7,Lebs,Supplies and Services,Other Hired And Contracted Services,03/01/2013,9.5,Revenue,Adult Placement Services
Leeds City Council as Accountable Body,East - North East,1,Construction Services,7,Lebs,Supplies and Services,Other Hired And Contracted Services,03/01/2013,23.75,Revenue,Adult Placement Services
Leeds City Council as Accountable Body,East - North East,1,Construction Services,7,Lebs,Supplies and Services,Other Hired And Contracted Services,03/01/2013,57,Revenue,Adult Placement Services
Leeds City Council as Accountable Body,East - North East,1,Construction Services,7,Lebs,Supplies and Services,Other Hired And Contracted Services,03/01/2013,19,Revenue,Adult Placement Services
Leeds City Council as Accountable Body,East - North East,1,Construction Services,7,Lebs,Supplies and Services,Other Hired And Contracted Services,03/01/2013,57,Revenue,Adult Placement Services
Leeds City Council as Accountable Body,East - North East,1,Construction Services,7,Lebs,Supplies and Services,Other Hired And Contracted Services,03/01/2013,53.77,Revenue,Adult Placement Services
Leeds City Council as Accountable Body,East - North East,1,Construction Services,7,Lebs,Supplies and Services,Other Hired And Contracted Services,03/01/2013,12.73,Revenue,Adult Placement Services
Leeds City Council as Accountable Body,East - North East,1,Construction Services,7,Lebs,Supplies and Services,Other Hired And Contracted Services,03/01/2013,28.5,Revenue,Adult Placement Services
Leeds City Council as Accountable Body,East - North East,1,Construction Services,7,Lebs,Supplies and Services,Other Hired And Contracted Services,03/01/2013,23.75,Revenue,Adult Placement Services
Leeds City Council as Accountable Body,East - North East,1,Construction Services,7,Lebs,Supplies and Services,Other Hired And Contracted Services,03/01/2013,23.75,Revenue,Adult Placement Services
Leeds City Council as Accountable Body,East - North East,1,Construction Services,7,Lebs,Supplies and Services,Other Hired And Contracted Services,03/01/2013,23.75,Revenue,Adult Placement Services
Leeds City Council as Accountable Body,East - North East,1,Construction Services,7,Lebs,Supplies and Services,Other Hired And Contracted Services,03/01/2013,42.75,Revenue,Adult Placement Services
Leeds City Council as Accountable Body,East - North East,1,Construction Services,7,Lebs,Supplies and Services,Other Hired And Contracted Services,03/01/2013,76,Revenue,Adult Placement Services
Leeds City Council as Accountable Body,East - North East,1,Construction Services,7,Lebs,Supplies and Services,Other Hired And Contracted Services,03/01/2013,57,Revenue,Adult Placement Services
Leeds City Council as Accountable Body,East - North East,1,Construction Services,7,Lebs,Supplies and Services,Other Hired And Contracted Services,03/01/2013,25.27,Revenue,Adult Placement Services
Leeds City Council as Accountable Body,East - North East,1,Construction Services,7,Lebs,Supplies and Services,Other Hired And Contracted Services,03/01/2013,9.5,Revenue,Adult Placement Services
Leeds City Council as Accountable Body,East - North East,1,Construction Services,7,Lebs,Supplies and Services,Other Hired And Contracted Services,03/01/2013,7.98,Revenue,Adult Placement Services
Leeds City Council as Accountable Body,East - North East,1,Construction Services,7,Lebs,Supplies and Services,Other Hired And Contracted Services,03/01/2013,11.02,Revenue,Adult Placement Services
Leeds City Council as Accountable Body,East - North East,1,Construction Services,7,Lebs,Supplies and Services,Other Hired And Contracted Services,03/01/2013,7.98,Revenue,Adult Placement Services
Leeds City Council as Accountable Body,East - North East,1,Construction Services,7,Lebs,Supplies and Services,Other Hired And Contracted Services,03/01/2013,23.75,Revenue,Adult Placement Services
Leeds City Council as Accountable Body,East - North East,1,Construction Services,7,Lebs,Supplies and Services,Other Hired And Contracted Services,03/01/2013,190,Revenue,Adult Placement Services
Leeds City Council as Accountable Body,East - North East,1,Construction Services,7,Lebs,Supplies and Services,Other Hired And Contracted Services,03/01/2013,190,Revenue,Adult Placement Services
Leeds City Council as Accountable Body,East - North East,1,Construction Services,7,Lebs,Supplies and Services,Other Hired And Contracted Services,03/01/2013,38,Revenue,Adult Placement Services
Leeds City Council as Accountable Body,East - North East,1,Construction Services,7,Lebs,Supplies and Services,Other Hired And Contracted Services,03/01/2013,28.5,Revenue,Adult Placement Services
Leeds City Council as Accountable Body,East - North East,1,Construction Services,7,Lebs,Supplies and Services,Other Hired And Contracted Services,03/01/2013,28.5,Revenue,Adult Placement Services
Leeds City Council as Accountable Body,East - North East,1,Construction Services,7,Lebs,Supplies and Services,Other Hired And Contracted Services,03/01/2013,19,Revenue,Adult Placement Services
Leeds City Council as Accountable Body,East - North East,1,Construction Services,7,Lebs,Supplies and Services,Other Hired And Contracted Services,03/01/2013,14.25,Revenue,Adult Placement Services
Leeds City Council as Accountable Body,East - North East,1,Construction Services,7,Lebs,Supplies and Services,Other Hired And Contracted Services,03/01/2013,23.75,Revenue,Adult Placement Services
Leeds City Council as Accountable Body,East - North East,1,Construction Services,7,Lebs,Supplies and Services,Other Hired And Contracted Services,03/01/2013,28.5,Revenue,Adult Placement Services
Leeds City Council as Accountable Body,East - North East,1,Construction Services,7,Lebs,Supplies and Services,Other Hired And Contracted Services,03/01/2013,28.5,Revenue,Adult Placement Services
Leeds City Council as Accountable Body,East - North East,1,Construction Services,7,Lebs,Supplies and Services,Other Hired And Contracted Services,03/01/2013,47.5,Revenue,Adult Placement Services
Leeds City Council as Accountable Body,East - North East,1,Construction Services,7,Lebs,Supplies and Services,Other Hired And Contracted Services,03/01/2013,19,Revenue,Adult Placement Services
Leeds City Council as Accountable Body,East - North East,1,Construction Services,7,Lebs,Supplies and Services,Other Hired And Contracted Services,03/01/2013,28.5,Revenue,Adult Placement Services
Leeds City Council as Accountable Body,East - North East,1,Construction Services,7,Lebs,Supplies and Services,Other Hired And Contracted Services,03/01/2013,85.5,Revenue,Adult Placement Services
Leeds City Council as Accountable Body,East - North East,1,Construction Services,7,Lebs,Supplies and Services,Other Hired And Contracted Services,03/01/2013,61.75,Revenue,Adult Placement Services
Leeds City Council as Accountable Body,East - North East,1,Construction Services,7,Lebs,Supplies and Services,Other Hired And Contracted Services,03/01/2013,19,Revenue,Adult Placement Services
Leeds City Council as Accountable Body,East - North East,1,Construction Services,7,Lebs,Supplies and Services,Other Hired And Contracted Services,03/01/2013,28.5,Revenue,Adult Placement Services
Leeds City Council as Accountable Body,East - North East,1,Construction Services,7,Lebs,Supplies and Services,Other Hired And Contracted Services,03/01/2013,7.98,Revenue,Adult Placement Services
Leeds City Council as Accountable Body,East - North East,1,Construction Services,7,Lebs,Supplies and Services,Other Hired And Contracted Services,03/01/2013,9.5,Revenue,Adult Placement Services
Leeds City Council as Accountable Body,East - North East,1,Construction Services,7,Lebs,Supplies and Services,Other Hired And Contracted Services,03/01/2013,9.5,Revenue,Adult Placement Services
Leeds City Council as Accountable Body,East - North East,1,Construction Services,7,Lebs,Supplies and Services,Other Hired And Contracted Services,03/01/2013,9.5,Revenue,Adult Placement Services
Leeds City Council as Accountable Body,East - North East,1,Construction Services,7,Lebs,Supplies and Services,Other Hired And Contracted Services,03/01/2013,23.75,Revenue,Adult Placement Services
Leeds City Council as Accountable Body,East - North East,1,Construction Services,7,Lebs,Supplies and Services,Other Hired And Contracted Services,03/01/2013,28.5,Revenue,Adult Placement Services
Leeds City Council as Accountable Body,East - North East,1,Construction Services,7,Lebs,Supplies and Services,Other Hired And Contracted Services,03/01/2013,28.5,Revenue,Adult Placement Services
Leeds City Council as Accountable Body,East - North East,1,Construction Services,7,Lebs,Supplies and Services,Other Hired And Contracted Services,03/01/2013,47.5,Revenue,Adult Placement Services
Leeds City Council as Accountable Body,East - North East,1,Construction Services,7,Lebs,Supplies and Services,Other Hired And Contracted Services,03/01/2013,28.5,Revenue,Adult Placement Services
Leeds City Council as Accountable Body,East - North East,1,Construction Services,7,Lebs,Supplies and Services,Other Hired And Contracted Services,03/01/2013,76,Revenue,Adult Placement Services
Leeds City Council as Accountable Body,East - North East,1,Construction Services,7,Lebs,Supplies and Services,Other Hired And Contracted Services,03/01/2013,9.5,Revenue,Adult Placement Services
Leeds City Council as Accountable Body,East - North East,1,Construction Services,7,Lebs,Supplies and Services,Other Hired And Contracted Services,03/01/2013,66.5,Revenue,Adult Placement Services
Leeds City Council as Accountable Body,East - North East,1,Construction Services,7,Lebs,Supplies and Services,Other Hired And Contracted Services,03/01/2013,66.5,Revenue,Adult Placement Services
Leeds City Council as Accountable Body,East - North East,1,Construction Services,7,Lebs,Supplies and Services,Other Hired And Contracted Services,03/01/2013,28.5,Revenue,Adult Placement Services
Leeds City Council as Accountable Body,East - North East,1,Construction Services,7,Lebs,Supplies and Services,Other Hired And Contracted Services,03/01/2013,19,Revenue,Adult Placement Services
Leeds City Council as Accountable Body,East - North East,1,Construction Services,7,Lebs,Supplies and Services,Other Hired And Contracted Services,03/01/2013,28.5,Revenue,Adult Placement Services
Leeds City Council as Accountable Body,East - North East,1,Construction Services,7,Lebs,Supplies and Services,Other Hired And Contracted Services,03/01/2013,38,Revenue,Adult Placement Services
Leeds City Council as Accountable Body,East - North East,1,Construction Services,7,Lebs,Supplies and Services,Other Hired And Contracted Services,03/01/2013,38,Revenue,Adult Placement Services
Leeds City Council as Accountable Body,East - North East,1,Construction Services,7,Lebs,Supplies and Services,Other Hired And Contracted Services,03/01/2013,28.5,Revenue,Adult Placement Services
Leeds City Council as Accountable Body,East - North East,1,Construction Services,7,Lebs,Supplies and Services,Other Hired And Contracted Services,03/01/2013,19,Revenue,Adult Placement Services
Leeds City Council as Accountable Body,East - North East,1,Construction Services,7,Lebs,Supplies and Services,Other Hired And Contracted Services,03/01/2013,28.5,Revenue,Adult Placement Services
Leeds City Council as Accountable Body,East - North East,1,Construction Services,7,Lebs,Supplies and Services,Other Hired And Contracted Services,03/01/2013,28.5,Revenue,Adult Placement Services
Leeds City Council as Accountable Body,East - North East,1,Construction Services,7,Lebs,Supplies and Services,Other Hired And Contracted Services,03/01/2013,47.5,Revenue,Adult Placement Services
Leeds City Council as Accountable Body,East - North East,1,Construction Services,7,Lebs,Supplies and Services,Other Hired And Contracted Services,03/01/2013,19,Revenue,Adult Placement Services
Leeds City Council as Accountable Body,East - North East,1,Construction Services,7,Lebs,Supplies and Services,Other Hired And Contracted Services,03/01/2013,28.5,Revenue,Adult Placement Services
Leeds City Council as Accountable Body,East - North East,1,Construction Services,7,Lebs,Supplies and Services,Other Hired And Contracted Services,03/01/2013,28.5,Revenue,Adult Placement Services
Leeds City Council as Accountable Body,East - North East,1,Construction Services,7,Lebs,Supplies and Services,Other Hired And Contracted Services,03/01/2013,38,Revenue,Adult Placement Services
Leeds City Council as Accountable Body,East - North East,1,Construction Services,7,Lebs,Supplies and Services,Other Hired And Contracted Services,03/01/2013,95,Revenue,Adult Placement Services
Leeds City Council as Accountable Body,East - North East,1,Construction Services,7,Lebs,Supplies and Services,Other Hired And Contracted Services,03/01/2013,42.75,Revenue,Adult Placement Services
Leeds City Council as Accountable Body,East - North East,1,Construction Services,7,Lebs,Supplies and Services,Other Hired And Contracted Services,03/01/2013,28.5,Revenue,Adult Placement Services
Leeds City Council as Accountable Body,East - North East,1,Construction Services,7,Lebs,Supplies and Services,Other Hired And Contracted Services,03/01/2013,14.25,Revenue,Adult Placement Services
Leeds City Council as Accountable Body,East - North East,1,Construction Services,7,Lebs,Supplies and Services,Other Hired And Contracted Services,03/01/2013,19,Revenue,Adult Placement Services
Leeds City Council as Accountable Body,East - North East,1,Construction Services,7,Lebs,Supplies and Services,Other Hired And Contracted Services,03/01/2013,14.25,Revenue,Adult Placement Services
Leeds City Council as Accountable Body,East - North East,1,Construction Services,7,Lebs,Supplies and Services,Other Hired And Contracted Services,03/01/2013,23.75,Revenue,Adult Placement Services
Leeds City Council as Accountable Body,East - North East,1,Construction Services,7,Lebs,Supplies and Services,Other Hired And Contracted Services,03/01/2013,33.25,Revenue,Adult Placement Services
Leeds City Council as Accountable Body,East - North East,1,Construction Services,7,Lebs,Supplies and Services,Other Hired And Contracted Services,03/01/2013,33.25,Revenue,Adult Placement Services
Leeds City Council as Accountable Body,East - North East,1,Construction Services,7,Lebs,Supplies and Services,Other Hired And Contracted Services,03/01/2013,14.25,Revenue,Adult Placement Services
Leeds City Council as Accountable Body,East - North East,1,Construction Services,7,Lebs,Supplies and Services,Other Hired And Contracted Services,03/01/2013,23.75,Revenue,Adult Placement Services
